Workbook

Sheet Base (hidden)
A1: Período | B1: LOJA | C1: NOME | D1: FORNECEDOR | E1: PLU | F1: DESCRIÇÃO - PRODUTO | G1: VENDA | H1: ESTOQUE TOTA | I1: MOSTRUARIO | J1: ESTOQUE REAL | K1: PROJEÇÃO MAIO | L1: Sugestão reposição maio | M1: abril
A2: abril | B2: 1347 | C2: EXTRA BRASILIA NORTE | D2: CAFE TRES CORACOES S/A | E2: 1046035 | F2: MAQ CAFE 3 CORACOES MODO VER 220 | G2: 15
A3: abril | B3: 1309 | C3: ARICANDUVA SHOP | D3: CAFE TRES CORACOES S/A | E3: 1046036 | F3: MAQ CAFE 3 CORACOES MODO VER 110 | G3: 11
A4: abril | B4: 1335 | C4: EXTRA BARRA | D4: CAFE TRES CORACOES S/A | E4: 1046036 | F4: MAQ CAFE 3 CORACOES MODO VER 110 | G4: 11
A5: abril | B5: 1301 | C5: CAMPO GRANDE | D5: CAFE TRES CORACOES S/A | E5: 1046036 | F5: MAQ CAFE 3 CORACOES MODO VER 110 | G5: 9
A6: abril | B6: 1319 | C6: PENHA | D6: CAFE TRES CORACOES S/A | E6: 1046036 | F6: MAQ CAFE 3 CORACOES MODO VER 110 | G6: 9
A7: abril | B7: 1330 | C7: MINAS SHOPPING | D7: CAFE TRES CORACOES S/A | E7: 1046036 | F7: MAQ CAFE 3 CORACOES MODO VER 110 | G7: 9
A8: abril | B8: 1371 | C8: EXTRA BENFICA | D8: CAFE TRES CORACOES S/A | E8: 1046035 | F8: MAQ CAFE 3 CORACOES MODO VER 220 | G8: 9
A9: abril | B9: 1307 | C9: ANHANGUERA | D9: CAFE TRES CORACOES S/A | E9: 1046036 | F9: MAQ CAFE 3 CORACOES MODO VER 110 | G9: 7
A10: abril | B10: 1355 | C10: EXTRA BRASILIA SUL | D10: CAFE TRES CORACOES S/A | E10: 1046035 | F10: MAQ CAFE 3 CORACOES MODO VER 220 | G10: 7
A11: abril | B11: 1603 | C11: TAGUATINGA | D11: CAFE TRES CORACOES S/A | E11: 1046035 | F11: MAQ CAFE 3 CORACOES MODO VER 220 | G11: 7
A12: abril | B12: 1314 | C12: ANCHIETA | D12: CAFE TRES CORACOES S/A | E12: 1046036 | F12: MAQ CAFE 3 CORACOES MODO VER 110 | G12: 6
A13: abril | B13: 1337 | C13: AEROPORTO | D13: CAFE TRES CORACOES S/A | E13: 1046036 | F13: MAQ CAFE 3 CORACOES MODO VER 110 | G13: 6
A14: abril | B14: 1359 | C14: EXTRA RICARDO JAFET | D14: CAFE TRES CORACOES S/A | E14: 1046036 | F14: MAQ CAFE 3 CORACOES MODO VER 110 | G14: 6
A15: abril | B15: 2136 | C15: EXTRA CUIABA | D15: CAFE TRES CORACOES S/A | E15: 1046036 | F15: MAQ CAFE 3 CORACOES MODO VER 110 | G15: 6
A16: abril | B16: 1304 | C16: BH - CENTRO | D16: CAFE TRES CORACOES S/A | E16: 1046036 | F16: MAQ CAFE 3 CORACOES MODO VER 110 | G16: 5
A17: abril | B17: 1318 | C17: CURITIBA ALTO DA XV | D17: CAFE TRES CORACOES S/A | E17: 1046036 | F17: MAQ CAFE 3 CORACOES MODO VER 110 | G17: 5
A18: abril | B18: 1348 | C18: SANTOS | D18: CAFE TRES CORACOES S/A | E18: 1046035 | F18: MAQ CAFE 3 CORACOES MODO VER 220 | G18: 5
A19: abril | B19: 1363 | C19: EXTRA MACEIO | D19: CAFE TRES CORACOES S/A | E19: 1046035 | F19: MAQ CAFE 3 CORACOES MODO VER 220 | G19: 5
A20: abril | B20: 1366 | C20: EXTRA BRASILIA PARK | D20: CAFE TRES CORACOES S/A | E20: 1046035 | F20: MAQ CAFE 3 CORACOES MODO VER 220 | G20: 5
A21: abril | B21: 1302 | C21: BRIGADEIRO | D21: CAFE TRES CORACOES S/A | E21: 1046036 | F21: MAQ CAFE 3 CORACOES MODO VER 110 | G21: 4
A22: abril | B22: 1329 | C22: MORUMBI | D22: CAFE TRES CORACOES S/A | E22: 1046036 | F22: MAQ CAFE 3 CORACOES MODO VER 110 | G22: 4
A23: abril | B23: 1368 | C23: EXTRA ARACAJU | D23: CAFE TRES CORACOES S/A | E23: 1046036 | F23: MAQ CAFE 3 CORACOES MODO VER 110 | G23: 4
A24: abril | B24: 1380 | C24: EXTRA CONTAGEM | D24: CAFE TRES CORACOES S/A | E24: 1046036 | F24: MAQ CAFE 3 CORACOES MODO VER 110 | G24: 4
A25: abril | B25: 1315 | C25: SAO CAETANO | D25: CAFE TRES CORACOES S/A | E25: 1046036 | F25: MAQ CAFE 3 CORACOES MODO VER 110 | G25: 3
A26: abril | B26: 1346 | C26: SOROCABA | D26: CAFE TRES CORACOES S/A | E26: 1046036 | F26: MAQ CAFE 3 CORACOES MODO VER 110 | G26: 3
A27: abril | B27: 1347 | C27: EXTRA BRASILIA NORTE | D27: CAFE TRES CORACOES S/A | E27: 1048562 | F27: CAF 3 CORACOES MODO PRETA 220V | G27: 3
A28: abril | B28: 1364 | C28: MOOCA | D28: CAFE TRES CORACOES S/A | E28: 1046036 | F28: MAQ CAFE 3 CORACOES MODO VER 110 | G28: 3
A29: abril | B29: 1374 | C29: JUNDIAI | D29: CAFE TRES CORACOES S/A | E29: 1046035 | F29: MAQ CAFE 3 CORACOES MODO VER 220 | G29: 3
A30: abril | B30: 1384 | C30: GUARULHOS B. MAIA | D30: CAFE TRES CORACOES S/A | E30: 1046036 | F30: MAQ CAFE 3 CORACOES MODO VER 110 | G30: 3
A31: abril | B31: 1610 | C31: PARALELA | D31: CAFE TRES CORACOES S/A | E31: 1046036 | F31: MAQ CAFE 3 CORACOES MODO VER 110 | G31: 3
A32: abril | B32: 1893 | C32: SEZEFREDO FAGUNDES | D32: CAFE TRES CORACOES S/A | E32: 1046036 | F32: MAQ CAFE 3 CORACOES MODO VER 110 | G32: 3
A33: abril | B33: 1301 | C33: CAMPO GRANDE | D33: CAFE TRES CORACOES S/A | E33: 1048561 | F33: CAF 3 CORACOES MODO PRETA 110V | G33: 2
A34: abril | B34: 1317 | C34: CARAPICUIBA | D34: CAFE TRES CORACOES S/A | E34: 1046036 | F34: MAQ CAFE 3 CORACOES MODO VER 110 | G34: 2
A35: abril | B35: 1339 | C35: FORTALEZA | D35: CAFE TRES CORACOES S/A | E35: 1046035 | F35: MAQ CAFE 3 CORACOES MODO VER 220 | G35: 2
A36: abril | B36: 1345 | C36: EXTRA MARACANA | D36: CAFE TRES CORACOES S/A | E36: 1046036 | F36: MAQ CAFE 3 CORACOES MODO VER 110 | G36: 2
A37: abril | B37: 1346 | C37: SOROCABA | D37: CAFE TRES CORACOES S/A | E37: 1048561 | F37: CAF 3 CORACOES MODO PRETA 110V | G37: 2
A38: abril | B38: 1354 | C38: GOIANIA | D38: CAFE TRES CORACOES S/A | E38: 1046035 | F38: MAQ CAFE 3 CORACOES MODO VER 220 | G38: 2
A39: abril | B39: 1373 | C39: S.J.C. COLINAS | D39: CAFE TRES CORACOES S/A | E39: 1046035 | F39: MAQ CAFE 3 CORACOES MODO VER 220 | G39: 2
A40: abril | B40: 1378 | C40: EXTRA UBERLANDIA | D40: CAFE TRES CORACOES S/A | E40: 1046035 | F40: MAQ CAFE 3 CORACOES MODO VER 220 | G40: 2
A41: abril | B41: 1382 | C41: SOROCABA CAMPOLIM | D41: CAFE TRES CORACOES S/A | E41: 1046036 | F41: MAQ CAFE 3 CORACOES MODO VER 110 | G41: 2
A42: abril | B42: 1382 | C42: SOROCABA CAMPOLIM | D42: CAFE TRES CORACOES S/A | E42: 1048561 | F42: CAF 3 CORACOES MODO PRETA 110V | G42: 2
A43: abril | B43: 1895 | C43: GOIANIA T9 | D43: CAFE TRES CORACOES S/A | E43: 1046035 | F43: MAQ CAFE 3 CORACOES MODO VER 220 | G43: 2
A44: abril | B44: 2076 | C44: EXTRA PALMAS | D44: CAFE TRES CORACOES S/A | E44: 1046035 | F44: MAQ CAFE 3 CORACOES MODO VER 220 | G44: 2
A45: abril | B45: 603 | C45: TIJUCA | D45: CAFE TRES CORACOES S/A | E45: 1048561 | F45: CAF 3 CORACOES MODO PRETA 110V | G45: 1
A46: abril | B46: 1300 | C46: EXTRA TERESINA | D46: CAFE TRES CORACOES S/A | E46: 1046035 | F46: MAQ CAFE 3 CORACOES MODO VER 220 | G46: 1
A47: abril | B47: 1302 | C47: BRIGADEIRO | D47: CAFE TRES CORACOES S/A | E47: 1048561 | F47: CAF 3 CORACOES MODO PRETA 110V | G47: 1
A48: abril | B48: 1305 | C48: CAMPINAS ABOLICAO | D48: CAFE TRES CORACOES S/A | E48: 1046036 | F48: MAQ CAFE 3 CORACOES MODO VER 110 | G48: 1
A49: abril | B49: 1309 | C49: ARICANDUVA SHOP | D49: CAFE TRES CORACOES S/A | E49: 1048561 | F49: CAF 3 CORACOES MODO PRETA 110V | G49: 1
A50: abril | B50: 1323 | C50: COTIA | D50: CAFE TRES CORACOES S/A | E50: 1046036 | F50: MAQ CAFE 3 CORACOES MODO VER 110 | G50: 1
A51: abril | B51: 1323 | C51: COTIA | D51: CAFE TRES CORACOES S/A | E51: 1048561 | F51: CAF 3 CORACOES MODO PRETA 110V | G51: 1
A52: abril | B52: 1324 | C52: ITATIBA | D52: CAFE TRES CORACOES S/A | E52: 1046036 | F52: MAQ CAFE 3 CORACOES MODO VER 110 | G52: 1
A53: abril | B53: 1325 | C53: ITU | D53: CAFE TRES CORACOES S/A | E53: 1046036 | F53: MAQ CAFE 3 CORACOES MODO VER 110 | G53: 1
A54: abril | B54: 1328 | C54: MARGINAL TIETE | D54: CAFE TRES CORACOES S/A | E54: 1048561 | F54: CAF 3 CORACOES MODO PRETA 110V | G54: 1
A55: abril | B55: 1330 | C55: MINAS SHOPPING | D55: CAFE TRES CORACOES S/A | E55: 1048561 | F55: CAF 3 CORACOES MODO PRETA 110V | G55: 1
A56: abril | B56: 1335 | C56: EXTRA BARRA | D56: CAFE TRES CORACOES S/A | E56: 1048561 | F56: CAF 3 CORACOES MODO PRETA 110V | G56: 1
A57: abril | B57: 1337 | C57: AEROPORTO | D57: CAFE TRES CORACOES S/A | E57: 1048561 | F57: CAF 3 CORACOES MODO PRETA 110V | G57: 1
A58: abril | B58: 1338 | C58: STO ANDRE | D58: CAFE TRES CORACOES S/A | E58: 1048561 | F58: CAF 3 CORACOES MODO PRETA 110V | G58: 1
A59: abril | B59: 1339 | C59: FORTALEZA | D59: CAFE TRES CORACOES S/A | E59: 1048562 | F59: CAF 3 CORACOES MODO PRETA 220V | G59: 1
A60: abril | B60: 1341 | C60: ITAIM BIBI | D60: CAFE TRES CORACOES S/A | E60: 1046036 | F60: MAQ CAFE 3 CORACOES MODO VER 110 | G60: 1
A61: abril | B61: 1341 | C61: ITAIM BIBI | D61: CAFE TRES CORACOES S/A | E61: 1048561 | F61: CAF 3 CORACOES MODO PRETA 110V | G61: 1
A62: abril | B62: 1342 | C62: MOGI LAR | D62: CAFE TRES CORACOES S/A | E62: 1046035 | F62: MAQ CAFE 3 CORACOES MODO VER 220 | G62: 1
A63: abril | B63: 1345 | C63: EXTRA MARACANA | D63: CAFE TRES CORACOES S/A | E63: 1048561 | F63: CAF 3 CORACOES MODO PRETA 110V | G63: 1
A64: abril | B64: 1348 | C64: SANTOS | D64: CAFE TRES CORACOES S/A | E64: 1048562 | F64: CAF 3 CORACOES MODO PRETA 220V | G64: 1
A65: abril | B65: 1349 | C65: ARARAQUARA | D65: CAFE TRES CORACOES S/A | E65: 1046036 | F65: MAQ CAFE 3 CORACOES MODO VER 110 | G65: 1
A66: abril | B66: 1357 | C66: JAGUARE | D66: CAFE TRES CORACOES S/A | E66: 1046036 | F66: MAQ CAFE 3 CORACOES MODO VER 110 | G66: 1
A67: abril | B67: 1358 | C67: EXTRA BELVEDERE | D67: CAFE TRES CORACOES S/A | E67: 1046036 | F67: MAQ CAFE 3 CORACOES MODO VER 110 | G67: 1
A68: abril | B68: 1361 | C68: EXTRA PILARES | D68: CAFE TRES CORACOES S/A | E68: 1048561 | F68: CAF 3 CORACOES MODO PRETA 110V | G68: 1
A69: abril | B69: 1366 | C69: EXTRA BRASILIA PARK | D69: CAFE TRES CORACOES S/A | E69: 1048562 | F69: CAF 3 CORACOES MODO PRETA 220V | G69: 1
A70: abril | B70: 1368 | C70: EXTRA ARACAJU | D70: CAFE TRES CORACOES S/A | E70: 1048561 | F70: CAF 3 CORACOES MODO PRETA 110V | G70: 1
A71: abril | B71: 1372 | C71: EXTRA CEILANDIA | D71: CAFE TRES CORACOES S/A | E71: 1046035 | F71: MAQ CAFE 3 CORACOES MODO VER 220 | G71: 1
A72: abril | B72: 1391 | C72: GAMELINHA | D72: CAFE TRES CORACOES S/A | E72: 1046036 | F72: MAQ CAFE 3 CORACOES MODO VER 110 | G72: 1
A73: abril | B73: 1396 | C73: PIRACICABA | D73: CAFE TRES CORACOES S/A | E73: 1046036 | F73: MAQ CAFE 3 CORACOES MODO VER 110 | G73: 1
A74: abril | B74: 1603 | C74: TAGUATINGA | D74: CAFE TRES CORACOES S/A | E74: 1048562 | F74: CAF 3 CORACOES MODO PRETA 220V | G74: 1
A75: abril | B75: 1656 | C75: ITAIPU | D75: CAFE TRES CORACOES S/A | E75: 1046036 | F75: MAQ CAFE 3 CORACOES MODO VER 110 | G75: 1
A76: abril | B76: 1678 | C76: GALEAO | D76: CAFE TRES CORACOES S/A | E76: 1048561 | F76: CAF 3 CORACOES MODO PRETA 110V | G76: 1
A77: abril | B77: 1680 | C77: GRANDE RIO | D77: CAFE TRES CORACOES S/A | E77: 1046036 | F77: MAQ CAFE 3 CORACOES MODO VER 110 | G77: 1
A78: abril | B78: 1822 | C78: ALTO DA SERRA | D78: CAFE TRES CORACOES S/A | E78: 1046036 | F78: MAQ CAFE 3 CORACOES MODO VER 110 | G78: 1
A79: abril | B79: 1866 | C79: LEME CENTRO | D79: CAFE TRES CORACOES S/A | E79: 1046036 | F79: MAQ CAFE 3 CORACOES MODO VER 110 | G79: 1
A80: abril | B80: 1880 | C80: EXTRA VARZEA GRANDE | D80: CAFE TRES CORACOES S/A | E80: 1046036 | F80: MAQ CAFE 3 CORACOES MODO VER 110 | G80: 1
A81: abril | B81: 1883 | C81: TAUBATE | D81: CAFE TRES CORACOES S/A | E81: 1046036 | F81: MAQ CAFE 3 CORACOES MODO VER 110 | G81: 1
A82: abril | B82: 2060 | C82: CAMPINAS D. PEDRO | D82: CAFE TRES CORACOES S/A | E82: 1046036 | F82: MAQ CAFE 3 CORACOES MODO VER 110 | G82: 1
A83: abril | B83: 2066 | C83: OSASCO SHOP | D83: CAFE TRES CORACOES S/A | E83: 1046036 | F83: MAQ CAFE 3 CORACOES MODO VER 110 | G83: 1
A84: abril | B84: 2134 | C84: R. PRETO P. VARGAS | D84: CAFE TRES CORACOES S/A | E84: 1046036 | F84: MAQ CAFE 3 CORACOES MODO VER 110 | G84: 1
A85: abril | B85: 2137 | C85: GOIANIA BURITIS | D85: CAFE TRES CORACOES S/A | E85: 1046035 | F85: MAQ CAFE 3 CORACOES MODO VER 220 | G85: 1
A86: abril | B86: 1303 | C86: CURITIBA KENNEDY | D86: CAFE TRES CORACOES S/A | E86: 1046036 | F86: MAQ CAFE 3 CORACOES MODO VER 110 | G86: 0
A87: abril | B87: 1352 | C87: MAUA | D87: CAFE TRES CORACOES S/A | E87: 1046036 | F87: MAQ CAFE 3 CORACOES MODO VER 110 | G87: 0
A88: maio | B88: 1366 | C88: EXTRA BRASILIA PARK | D88: CAFE TRES CORACOES S/A | E88: 1046035 | F88: MAQ CAFE 3 CORACOES MODO VER 220 | G88: 41 | H88: 7 | I88: 2 | J88: =H88-I88 -> 5 | K88: =G88/15*20 -> 54.66666667 | L88: 50 | M88: =K88*70% -> 38.26666667
A89: maio | B89: 1337 | C89: AEROPORTO | D89: CAFE TRES CORACOES S/A | E89: 1046036 | F89: MAQ CAFE 3 CORACOES MODO VER 110 | G89: 39 | H89: 20 | I89: 2 | J89: =H89-I89 -> 18 | K89: =G89/15*20 -> 52 | L89: =K89-J89 -> 34 | M89: =K89*70% -> 36.4
A90: maio | B90: 1348 | C90: SANTOS | D90: CAFE TRES CORACOES S/A | E90: 1046035 | F90: MAQ CAFE 3 CORACOES MODO VER 220 | G90: 34 | H90: 11 | I90: 2 | J90: 9 | K90: 45.33333333 | L90: =K90-J90 -> 36.33333333 | M90: 31.73333333
A91: maio | B91: 1302 | C91: BRIGADEIRO | D91: CAFE TRES CORACOES S/A | E91: 1046036 | F91: MAQ CAFE 3 CORACOES MODO VER 110 | G91: 33 | H91: 44 | I91: 2 | J91: 42 | K91: 44 | L91: 2 | M91: 30.8
A92: maio | B92: 1603 | C92: TAGUATINGA | D92: CAFE TRES CORACOES S/A | E92: 1046035 | F92: MAQ CAFE 3 CORACOES MODO VER 220 | G92: 32 | H92: 10 | I92: 2 | J92: 8 | K92: 42.66666667 | L92: 34.66666667 | M92: 29.86666667
A93: maio | B93: 1309 | C93: ARICANDUVA SHOP | D93: CAFE TRES CORACOES S/A | E93: 1046036 | F93: MAQ CAFE 3 CORACOES MODO VER 110 | G93: 30 | H93: 3 | I93: 2 | J93: 1 | K93: 40 | L93: 39 | M93: 28
A94: maio | B94: 1301 | C94: CAMPO GRANDE | D94: CAFE TRES CORACOES S/A | E94: 1046036 | F94: MAQ CAFE 3 CORACOES MODO VER 110 | G94: 29 | H94: 4 | I94: 2 | J94: 2 | K94: 38.66666667 | L94: 36.66666667 | M94: 27.06666667
A95: maio | B95: 1314 | C95: ANCHIETA | D95: CAFE TRES CORACOES S/A | E95: 1046036 | F95: MAQ CAFE 3 CORACOES MODO VER 110 | G95: 28 | H95: 16 | I95: 2 | J95: 14 | K95: 37.33333333 | L95: 23.33333333 | M95: 26.13333333
A96: maio | B96: 1319 | C96: PENHA | D96: CAFE TRES CORACOES S/A | E96: 1046036 | F96: MAQ CAFE 3 CORACOES MODO VER 110 | G96: 28 | H96: 6 | I96: 2 | J96: 4 | K96: 37.33333333 | L96: 33.33333333 | M96: 26.13333333
A97: maio | B97: 1307 | C97: ANHANGUERA | D97: CAFE TRES CORACOES S/A | E97: 1046036 | F97: MAQ CAFE 3 CORACOES MODO VER 110 | G97: 26 | H97: -1 | I97: 0 | J97: -1 | K97: 34.66666667 | L97: 35.66666667 | M97: 24.26666667
A98: maio | B98: 1359 | C98: EXTRA RICARDO JAFET | D98: CAFE TRES CORACOES S/A | E98: 1046036 | F98: MAQ CAFE 3 CORACOES MODO VER 110 | G98: 24 | H98: 4 | I98: 2 | J98: 2 | K98: 32 | L98: 30 | M98: 22.4
A99: maio | B99: 1688 | C99: MORUMBI | D99: CAFE TRES CORACOES S/A | E99: 1046036 | F99: MAQ CAFE 3 CORACOES MODO VER 110 | G99: 23 | H99: 15 | I99: 2 | J99: 13 | K99: 30.66666667 | L99: 17.66666667 | M99: 21.46666667
A100: maio | B100: 1681 | C100: EXTRA CARIOCA | D100: CAFE TRES CORACOES S/A | E100: 1046036 | F100: MAQ CAFE 3 CORACOES MODO VER 110 | G100: 21 | H100: 0 | I100: 0 | J100: 0 | K100: 28 | L100: 28 | M100: 19.6
A101: maio | B101: 1347 | C101: EXTRA BRASILIA NORTE | D101: CAFE TRES CORACOES S/A | E101: 1046035 | F101: MAQ CAFE 3 CORACOES MODO VER 220 | G101: 21 | H101: 4 | I101: 2 | J101: 2 | K101: 28 | L101: 26 | M101: 19.6
A102: maio | B102: 1335 | C102: EXTRA BARRA | D102: CAFE TRES CORACOES S/A | E102: 1046036 | F102: MAQ CAFE 3 CORACOES MODO VER 110 | G102: 19 | H102: 21 | I102: 2 | J102: 19 | K102: 25.33333333 | L102: 6.333333333 | M102: 17.73333333
A103: maio | B103: 1378 | C103: EXTRA UBERLANDIA | D103: CAFE TRES CORACOES S/A | E103: 1046035 | F103: MAQ CAFE 3 CORACOES MODO VER 220 | G103: 18 | H103: 1 | I103: 1 | J103: 0 | K103: 24 | L103: 24 | M103: 16.8
A104: maio | B104: 1337 | C104: AEROPORTO | D104: CAFE TRES CORACOES S/A | E104: 1048561 | F104: MAQ CAFE 3 CORACOES MODO PT 110 | G104: 18 | H104: 10 | I104: 2 | J104: 8 | K104: 24 | L104: 16 | M104: 16.8
A105: maio | B105: 1339 | C105: FORTALEZA | D105: CAFE TRES CORACOES S/A | E105: 1046035 | F105: MAQ CAFE 3 CORACOES MODO VER 220 | G105: 17 | H105: 3 | I105: 2 | J105: 1 | K105: 22.66666667 | L105: 21.66666667 | M105: 15.86666667
A106: maio | B106: 1327 | C106: PRAIA GRANDE SHOP | D106: CAFE TRES CORACOES S/A | E106: 1046036 | F106: MAQ CAFE 3 CORACOES MODO VER 110 | G106: 16 | H106: 17 | I106: 2 | J106: 15 | K106: 21.33333333 | L106: 6.333333333 | M106: 14.93333333
A107: maio | B107: 1348 | C107: SANTOS | D107: CAFE TRES CORACOES S/A | E107: 1048562 | F107: MAQ CAFE 3 CORACOES MODO PT 220 | G107: 16 | H107: -1 | I107: 0 | J107: -1 | K107: 21.33333333 | L107: 22.33333333 | M107: 14.93333333
A108: maio | B108: 1304 | C108: BH - CENTRO | D108: CAFE TRES CORACOES S/A | E108: 1046036 | F108: MAQ CAFE 3 CORACOES MODO VER 110 | G108: 15 | H108: 7 | I108: 2 | J108: 5 | K108: 20 | L108: 15 | M108: 14
A109: maio | B109: 1315 | C109: SAO CAETANO | D109: CAFE TRES CORACOES S/A | E109: 1046036 | F109: MAQ CAFE 3 CORACOES MODO VER 110 | G109: 15 | H109: 8 | I109: 2 | J109: 6 | K109: 20 | L109: 14 | M109: 14
A110: maio | B110: 1341 | C110: ITAIM BIBI | D110: CAFE TRES CORACOES S/A | E110: 1046036 | F110: MAQ CAFE 3 CORACOES MODO VER 110 | G110: 15 | H110: 5 | I110: 2 | J110: 3 | K110: 20 | L110: 17 | M110: 14
A111: maio | B111: 1345 | C111: EXTRA MARACANA | D111: CAFE TRES CORACOES S/A | E111: 1046036 | F111: MAQ CAFE 3 CORACOES MODO VER 110 | G111: 15 | H111: 1 | I111: 1 | J111: 0 | K111: 20 | L111: 20 | M111: 14
A112: maio | B112: 1680 | C112: GRANDE RIO | D112: CAFE TRES CORACOES S/A | E112: 1046036 | F112: MAQ CAFE 3 CORACOES MODO VER 110 | G112: 15 | H112: 6 | I112: 2 | J112: 4 | K112: 20 | L112: 16 | M112: 14
A113: maio | B113: 1373 | C113: S.J.C. COLINAS | D113: CAFE TRES CORACOES S/A | E113: 1046035 | F113: MAQ CAFE 3 CORACOES MODO VER 220 | G113: 15 | H113: 8 | I113: 2 | J113: 6 | K113: 20 | L113: 14 | M113: 14
A114: maio | B114: 1364 | C114: MOOCA | D114: CAFE TRES CORACOES S/A | E114: 1046036 | F114: MAQ CAFE 3 CORACOES MODO VER 110 | G114: 14 | H114: 6 | I114: 2 | J114: 4 | K114: 18.66666667 | L114: 14.66666667 | M114: 13.06666667
A115: maio | B115: 1355 | C115: EXTRA BRASILIA SUL | D115: CAFE TRES CORACOES S/A | E115: 1046035 | F115: MAQ CAFE 3 CORACOES MODO VER 220 | G115: 14 | H115: 9 | I115: 2 | J115: 7 | K115: 18.66666667 | L115: 11.66666667 | M115: 13.06666667
A116: maio | B116: 1326 | C116: GUARULHOS DUTRA SHOP | D116: CAFE TRES CORACOES S/A | E116: 1046036 | F116: MAQ CAFE 3 CORACOES MODO VER 110 | G116: 13 | H116: 5 | I116: 2 | J116: 3 | K116: 17.33333333 | L116: 14.33333333 | M116: 12.13333333
A117: maio | B117: 1357 | C117: JAGUARE | D117: CAFE TRES CORACOES S/A | E117: 1046036 | F117: MAQ CAFE 3 CORACOES MODO VER 110 | G117: 13 | H117: 6 | I117: 2 | J117: 4 | K117: 17.33333333 | L117: 13.33333333 | M117: 12.13333333
A118: maio | B118: 1368 | C118: EXTRA ARACAJU | D118: CAFE TRES CORACOES S/A | E118: 1046036 | F118: MAQ CAFE 3 CORACOES MODO VER 110 | G118: 13 | H118: 1 | I118: 1 | J118: 0 | K118: 17.33333333 | L118: 17.33333333 | M118: 12.13333333
A119: maio | B119: 1300 | C119: EXTRA TERESINA | D119: CAFE TRES CORACOES S/A | E119: 1046035 | F119: MAQ CAFE 3 CORACOES MODO VER 220 | G119: 13 | H119: 6 | I119: 2 | J119: 4 | K119: 17.33333333 | L119: 13.33333333 | M119: 12.13333333
A120: maio | B120: 1347 | C120: EXTRA BRASILIA NORTE | D120: CAFE TRES CORACOES S/A | E120: 1048562 | F120: MAQ CAFE 3 CORACOES MODO PT 220 | G120: 13 | H120: 2 | I120: 2 | J120: 0 | K120: 17.33333333 | L120: 17.33333333 | M120: 12.13333333
A121: maio | B121: 1358 | C121: EXTRA BELVEDERE | D121: CAFE TRES CORACOES S/A | E121: 1046036 | F121: MAQ CAFE 3 CORACOES MODO VER 110 | G121: 12 | H121: 14 | I121: 2 | J121: 12 | K121: 16 | L121: 4 | M121: 11.2
A122: maio | B122: 1380 | C122: EXTRA CONTAGEM | D122: CAFE TRES CORACOES S/A | E122: 1046036 | F122: MAQ CAFE 3 CORACOES MODO VER 110 | G122: 12 | H122: 10 | I122: 2 | J122: 8 | K122: 16 | L122: 8 | M122: 11.2
A123: maio | B123: 1603 | C123: TAGUATINGA | D123: CAFE TRES CORACOES S/A | E123: 1048562 | F123: MAQ CAFE 3 CORACOES MODO PT 220 | G123: 12 | H123: -1 | I123: 0 | J123: -1 | K123: 16 | L123: 17 | M123: 11.2
A124: maio | B124: 1338 | C124: STO ANDRE | D124: CAFE TRES CORACOES S/A | E124: 1048561 | F124: MAQ CAFE 3 CORACOES MODO PT 110 | G124: 12 | H124: 0 | I124: 0 | J124: 0 | K124: 16 | L124: 16 | M124: 11.2
A125: maio | B125: 1396 | C125: PIRACICABA | D125: CAFE TRES CORACOES S/A | E125: 1046036 | F125: MAQ CAFE 3 CORACOES MODO VER 110 | G125: 11 | H125: 0 | I125: 0 | J125: 0 | K125: 14.66666667 | L125: 14.66666667 | M125: 10.26666667
A126: maio | B126: 1689 | C126: MINAS SHOPPING | D126: CAFE TRES CORACOES S/A | E126: 1046036 | F126: MAQ CAFE 3 CORACOES MODO VER 110 | G126: 11 | H126: 3 | I126: 2 | J126: 1 | K126: 14.66666667 | L126: 13.66666667 | M126: 10.26666667
A127: maio | B127: 1371 | C127: EXTRA BENFICA | D127: CAFE TRES CORACOES S/A | E127: 1046035 | F127: MAQ CAFE 3 CORACOES MODO VER 220 | G127: 11 | H127: 12 | I127: 2 | J127: 10 | K127: 14.66666667 | L127: 4.666666667 | M127: 10.26666667
A128: maio | B128: 1372 | C128: EXTRA CEILANDIA | D128: CAFE TRES CORACOES S/A | E128: 1046035 | F128: MAQ CAFE 3 CORACOES MODO VER 220 | G128: 11 | H128: 1 | I128: 1 | J128: 0 | K128: 14.66666667 | L128: 14.66666667 | M128: 10.26666667
A129: maio | B129: 1309 | C129: ARICANDUVA SHOP | D129: CAFE TRES CORACOES S/A | E129: 1048561 | F129: MAQ CAFE 3 CORACOES MODO PT 110 | G129: 11 | H129: 1 | I129: 1 | J129: 0 | K129: 14.66666667 | L129: 14.66666667 | M129: 10.26666667
A130: maio | B130: 1338 | C130: STO ANDRE | D130: CAFE TRES CORACOES S/A | E130: 1046036 | F130: MAQ CAFE 3 CORACOES MODO VER 110 | G130: 10 | H130: 1 | I130: 1 | J130: 0 | K130: 13.33333333 | L130: 13.33333333 | M130: 9.333333333
A131: maio | B131: 1359 | C131: EXTRA RICARDO JAFET | D131: CAFE TRES CORACOES S/A | E131: 1048561 | F131: MAQ CAFE 3 CORACOES MODO PT 110 | G131: 10 | H131: 2 | I131: 2 | J131: 0 | K131: 13.33333333 | L131: 13.33333333 | M131: 9.333333333
A132: maio | B132: 1368 | C132: EXTRA ARACAJU | D132: CAFE TRES CORACOES S/A | E132: 1048561 | F132: MAQ CAFE 3 CORACOES MODO PT 110 | G132: 10 | H132: -1 | I132: 0 | J132: -1 | K132: 13.33333333 | L132: 14.33333333 | M132: 9.333333333
A133: maio | B133: 603 | C133: TIJUCA | D133: CAFE TRES CORACOES S/A | E133: 1046036 | F133: MAQ CAFE 3 CORACOES MODO VER 110 | G133: 9 | H133: 1 | I133: 1 | J133: 0 | K133: 12 | L133: 12 | M133: 8.4
A134: maio | B134: 1318 | C134: CURITIBA ALTO DA XV | D134: CAFE TRES CORACOES S/A | E134: 1046036 | F134: MAQ CAFE 3 CORACOES MODO VER 110 | G134: 9 | H134: 3 | I134: 2 | J134: 1 | K134: 12 | L134: 11 | M134: 8.4
A135: maio | B135: 2134 | C135: R. PRETO P. VARGAS | D135: CAFE TRES CORACOES S/A | E135: 1046036 | F135: MAQ CAFE 3 CORACOES MODO VER 110 | G135: 9 | H135: 12 | I135: 2 | J135: 10 | K135: 12 | L135: 2 | M135: 8.4
A136: maio | B136: 1354 | C136: GOIANIA | D136: CAFE TRES CORACOES S/A | E136: 1048562 | F136: MAQ CAFE 3 CORACOES MODO PT 220 | G136: 9 | H136: 1 | I136: 1 | J136: 0 | K136: 12 | L136: 12 | M136: 8.4
A137: maio | B137: 1301 | C137: CAMPO GRANDE | D137: CAFE TRES CORACOES S/A | E137: 1048561 | F137: MAQ CAFE 3 CORACOES MODO PT 110 | G137: 9 | H137: 3 | I137: 2 | J137: 1 | K137: 12 | L137: 11 | M137: 8.4
A138: maio | B138: 1688 | C138: MORUMBI | D138: CAFE TRES CORACOES S/A | E138: 1048561 | F138: MAQ CAFE 3 CORACOES MODO PT 110 | G138: 9 | H138: 1 | I138: 1 | J138: 0 | K138: 12 | L138: 12 | M138: 8.4
A139: maio | B139: 1305 | C139: CAMPINAS ABOLICAO | D139: CAFE TRES CORACOES S/A | E139: 1046036 | F139: MAQ CAFE 3 CORACOES MODO VER 110 | G139: 8 | H139: 3 | I139: 2 | J139: 1 | K139: 10.66666667 | L139: 9.666666667 | M139: 7.466666667
A140: maio | B140: 1612 | C140: GUARULHOS CENTRO | D140: CAFE TRES CORACOES S/A | E140: 1046036 | F140: MAQ CAFE 3 CORACOES MODO VER 110 | G140: 8 | H140: 8 | I140: 2 | J140: 6 | K140: 10.66666667 | L140: 4.666666667 | M140: 7.466666667
A141: maio | B141: 2147 | C141: EXTRA DOURADOS | D141: CAFE TRES CORACOES S/A | E141: 1046036 | F141: MAQ CAFE 3 CORACOES MODO VER 110 | G141: 8 | H141: 2 | I141: 2 | J141: 0 | K141: 10.66666667 | L141: 10.66666667 | M141: 7.466666667
A142: maio | B142: 1370 | C142: SAO VICENTE | D142: CAFE TRES CORACOES S/A | E142: 1046035 | F142: MAQ CAFE 3 CORACOES MODO VER 220 | G142: 8 | H142: 4 | I142: 2 | J142: 2 | K142: 10.66666667 | L142: 8.666666667 | M142: 7.466666667
A143: maio | B143: 1355 | C143: EXTRA BRASILIA SUL | D143: CAFE TRES CORACOES S/A | E143: 1048562 | F143: MAQ CAFE 3 CORACOES MODO PT 220 | G143: 8 | H143: 6 | I143: 2 | J143: 4 | K143: 10.66666667 | L143: 6.666666667 | M143: 7.466666667
A144: maio | B144: 1366 | C144: EXTRA BRASILIA PARK | D144: CAFE TRES CORACOES S/A | E144: 1048562 | F144: MAQ CAFE 3 CORACOES MODO PT 220 | G144: 8 | H144: 4 | I144: 2 | J144: 2 | K144: 10.66666667 | L144: 8.666666667 | M144: 7.466666667
A145: maio | B145: 1372 | C145: EXTRA CEILANDIA | D145: CAFE TRES CORACOES S/A | E145: 1048562 | F145: MAQ CAFE 3 CORACOES MODO PT 220 | G145: 8 | H145: 0 | I145: 0 | J145: 0 | K145: 10.66666667 | L145: 10.66666667 | M145: 7.466666667
A146: maio | B146: 1302 | C146: BRIGADEIRO | D146: CAFE TRES CORACOES S/A | E146: 1048561 | F146: MAQ CAFE 3 CORACOES MODO PT 110 | G146: 8 | H146: 9 | I146: 2 | J146: 7 | K146: 10.66666667 | L146: 3.666666667 | M146: 7.466666667
A147: maio | B147: 1341 | C147: ITAIM BIBI | D147: CAFE TRES CORACOES S/A | E147: 1048561 | F147: MAQ CAFE 3 CORACOES MODO PT 110 | G147: 8 | H147: 4 | I147: 2 | J147: 2 | K147: 10.66666667 | L147: 8.666666667 | M147: 7.466666667
A148: maio | B148: 1356 | C148: EXTRA FREGUESIA DO O | D148: CAFE TRES CORACOES S/A | E148: 1048561 | F148: MAQ CAFE 3 CORACOES MODO PT 110 | G148: 8 | H148: 1 | I148: 1 | J148: 0 | K148: 10.66666667 | L148: 10.66666667 | M148: 7.466666667
A149: maio | B149: 1310 | C149: JOAO DIAS | D149: CAFE TRES CORACOES S/A | E149: 1046036 | F149: MAQ CAFE 3 CORACOES MODO VER 110 | G149: 7 | H149: 2 | I149: 2 | J149: 0 | K149: 9.333333333 | L149: 9.333333333 | M149: 6.533333333
A150: maio | B150: 1311 | C150: CAMPINAS AMOREIRA | D150: CAFE TRES CORACOES S/A | E150: 1046036 | F150: MAQ CAFE 3 CORACOES MODO VER 110 | G150: 7 | H150: 1 | I150: 1 | J150: 0 | K150: 9.333333333 | L150: 9.333333333 | M150: 6.533333333
A151: maio | B151: 1317 | C151: CARAPICUIBA | D151: CAFE TRES CORACOES S/A | E151: 1046036 | F151: MAQ CAFE 3 CORACOES MODO VER 110 | G151: 7 | H151: 6 | I151: 2 | J151: 4 | K151: 9.333333333 | L151: 5.333333333 | M151: 6.533333333
A152: maio | B152: 1325 | C152: ITU | D152: CAFE TRES CORACOES S/A | E152: 1046036 | F152: MAQ CAFE 3 CORACOES MODO VER 110 | G152: 7 | H152: 6 | I152: 2 | J152: 4 | K152: 9.333333333 | L152: 5.333333333 | M152: 6.533333333
A153: maio | B153: 1349 | C153: ARARAQUARA | D153: CAFE TRES CORACOES S/A | E153: 1046036 | F153: MAQ CAFE 3 CORACOES MODO VER 110 | G153: 7 | H153: 5 | I153: 2 | J153: =H153-I153 -> 3 | K153: =G153/15*20 -> 9.333333333 | L153: 6.333333333 | M153: =K153*70% -> 6.533333333
A154: maio | B154: 1351 | C154: TABOAO DA SERRA | D154: CAFE TRES CORACOES S/A | E154: 1046036 | F154: MAQ CAFE 3 CORACOES MODO VER 110 | G154: 7 | H154: 6 | I154: 2 | J154: 4 | K154: 9.333333333 | L154: =K154-J154 -> 5.333333333 | M154: 6.533333333
A155: maio | B155: 1352 | C155: MAUA | D155: CAFE TRES CORACOES S/A | E155: 1046036 | F155: MAQ CAFE 3 CORACOES MODO VER 110 | G155: 7 | H155: 10 | I155: 2 | J155: 8 | K155: 9.333333333 | L155: 1.333333333 | M155: 6.533333333
A156: maio | B156: 1656 | C156: ITAIPU | D156: CAFE TRES CORACOES S/A | E156: 1046036 | F156: MAQ CAFE 3 CORACOES MODO VER 110 | G156: 7 | H156: 6 | I156: 2 | J156: 4 | K156: 9.333333333 | L156: 5.333333333 | M156: 6.533333333
A157: maio | B157: 1682 | C157: SANTA CRUZ | D157: CAFE TRES CORACOES S/A | E157: 1046036 | F157: MAQ CAFE 3 CORACOES MODO VER 110 | G157: 7 | H157: 5 | I157: 2 | J157: 3 | K157: 9.333333333 | L157: 6.333333333 | M157: 6.533333333
A158: maio | B158: 2136 | C158: EXTRA CUIABA | D158: CAFE TRES CORACOES S/A | E158: 1046036 | F158: MAQ CAFE 3 CORACOES MODO VER 110 | G158: 7 | H158: 11 | I158: 2 | J158: 9 | K158: 9.333333333 | L158: 0.3333333333 | M158: 6.533333333
A159: maio | B159: 2136 | C159: EXTRA CUIABA | D159: CAFE TRES CORACOES S/A | E159: 1048561 | F159: MAQ CAFE 3 CORACOES MODO PT 110 | G159: 0 | H159: 6 | I159: 2 | J159: 4 | K159: 0 | L159: -4 | M159: 0
A160: maio | B160: 1307 | C160: ANHANGUERA | D160: CAFE TRES CORACOES S/A | E160: 1048561 | F160: MAQ CAFE 3 CORACOES MODO PT 110 | G160: 7 | H160: 2 | I160: 2 | J160: 0 | K160: 9.333333333 | L160: 9.333333333 | M160: 6.533333333
A161: maio | B161: 1318 | C161: CURITIBA ALTO DA XV | D161: CAFE TRES CORACOES S/A | E161: 1048561 | F161: MAQ CAFE 3 CORACOES MODO PT 110 | G161: 7 | H161: 2 | I161: 2 | J161: 0 | K161: 9.333333333 | L161: 9.333333333 | M161: 6.533333333
A162: maio | B162: 1319 | C162: PENHA | D162: CAFE TRES CORACOES S/A | E162: 1048561 | F162: MAQ CAFE 3 CORACOES MODO PT 110 | G162: 7 | H162: 1 | I162: 1 | J162: 0 | K162: 9.333333333 | L162: 9.333333333 | M162: 6.533333333
A163: maio | B163: 1326 | C163: GUARULHOS DUTRA SHOP | D163: CAFE TRES CORACOES S/A | E163: 1048561 | F163: MAQ CAFE 3 CORACOES MODO PT 110 | G163: 7 | H163: 0 | I163: 0 | J163: 0 | K163: 9.333333333 | L163: 9.333333333 | M163: 6.533333333
A164: maio | B164: 1357 | C164: JAGUARE | D164: CAFE TRES CORACOES S/A | E164: 1048561 | F164: MAQ CAFE 3 CORACOES MODO PT 110 | G164: 7 | H164: 2 | I164: 2 | J164: 0 | K164: 9.333333333 | L164: 9.333333333 | M164: 6.533333333
A165: maio | B165: 1364 | C165: MOOCA | D165: CAFE TRES CORACOES S/A | E165: 1048561 | F165: MAQ CAFE 3 CORACOES MODO PT 110 | G165: 7 | H165: 2 | I165: 2 | J165: 0 | K165: 9.333333333 | L165: 9.333333333 | M165: 6.533333333
A166: maio | B166: 1321 | C166: CIDADE DUTRA | D166: CAFE TRES CORACOES S/A | E166: 1046036 | F166: MAQ CAFE 3 CORACOES MODO VER 110 | G166: 6 | H166: 6 | I166: 2 | J166: 4 | K166: 8 | L166: 4 | M166: 5.6
A167: maio | B167: 1324 | C167: ITATIBA | D167: CAFE TRES CORACOES S/A | E167: 1046036 | F167: MAQ CAFE 3 CORACOES MODO VER 110 | G167: 6 | H167: 1 | I167: 1 | J167: 0 | K167: 8 | L167: 8 | M167: 5.6
A168: maio | B168: 1346 | C168: SOROCABA | D168: CAFE TRES CORACOES S/A | E168: 1046036 | F168: MAQ CAFE 3 CORACOES MODO VER 110 | G168: 6 | H168: 12 | I168: 2 | J168: 10 | K168: 8 | L168: -2 | M168: 5.6
A169: maio | B169: 1356 | C169: EXTRA FREGUESIA DO O | D169: CAFE TRES CORACOES S/A | E169: 1046036 | F169: MAQ CAFE 3 CORACOES MODO VER 110 | G169: 6 | H169: 5 | I169: 2 | J169: 3 | K169: 8 | L169: 5 | M169: 5.6
A170: maio | B170: 1384 | C170: GUARULHOS B. MAIA | D170: CAFE TRES CORACOES S/A | E170: 1046036 | F170: MAQ CAFE 3 CORACOES MODO VER 110 | G170: 6 | H170: 7 | I170: 2 | J170: 5 | K170: 8 | L170: 3 | M170: 5.6
A171: maio | B171: 2547 | C171: PAULINIA | D171: CAFE TRES CORACOES S/A | E171: 1046036 | F171: MAQ CAFE 3 CORACOES MODO VER 110 | G171: 6 | H171: 2 | I171: 2 | J171: 0 | K171: 8 | L171: 8 | M171: 5.6
A172: maio | B172: 1374 | C172: JUNDIAI | D172: CAFE TRES CORACOES S/A | E172: 1046035 | F172: MAQ CAFE 3 CORACOES MODO VER 220 | G172: 6 | H172: 10 | I172: 2 | J172: 8 | K172: 8 | L172: 0 | M172: 5.6
A173: maio | B173: 1375 | C173: EXTRA PARANGABA | D173: CAFE TRES CORACOES S/A | E173: 1046035 | F173: MAQ CAFE 3 CORACOES MODO VER 220 | G173: 6 | H173: 8 | I173: 2 | J173: 6 | K173: 8 | L173: 2 | M173: 5.6
A174: maio | B174: 1300 | C174: EXTRA TERESINA | D174: CAFE TRES CORACOES S/A | E174: 1048562 | F174: MAQ CAFE 3 CORACOES MODO PT 220 | G174: 6 | H174: 6 | I174: 2 | J174: 4 | K174: 8 | L174: 4 | M174: 5.6
A175: maio | B175: 1339 | C175: FORTALEZA | D175: CAFE TRES CORACOES S/A | E175: 1048562 | F175: MAQ CAFE 3 CORACOES MODO PT 220 | G175: 6 | H175: 5 | I175: 2 | J175: 3 | K175: 8 | L175: 5 | M175: 5.6
A176: maio | B176: 1373 | C176: S.J.C. COLINAS | D176: CAFE TRES CORACOES S/A | E176: 1048562 | F176: MAQ CAFE 3 CORACOES MODO PT 220 | G176: 6 | H176: 8 | I176: 2 | J176: 6 | K176: 8 | L176: 2 | M176: 5.6
A177: maio | B177: 1304 | C177: BH - CENTRO | D177: CAFE TRES CORACOES S/A | E177: 1048561 | F177: MAQ CAFE 3 CORACOES MODO PT 110 | G177: 6 | H177: 1 | I177: 1 | J177: 0 | K177: 8 | L177: 8 | M177: 5.6
A178: maio | B178: 1315 | C178: SAO CAETANO | D178: CAFE TRES CORACOES S/A | E178: 1048561 | F178: MAQ CAFE 3 CORACOES MODO PT 110 | G178: 6 | H178: 4 | I178: 2 | J178: 2 | K178: 8 | L178: 6 | M178: 5.6
A179: maio | B179: 1349 | C179: ARARAQUARA | D179: CAFE TRES CORACOES S/A | E179: 1048561 | F179: MAQ CAFE 3 CORACOES MODO PT 110 | G179: 6 | I179: 2 | J179: -2 | K179: 8 | L179: 10 | M179: 5.6
A180: maio | B180: 1680 | C180: GRANDE RIO | D180: CAFE TRES CORACOES S/A | E180: 1048561 | F180: MAQ CAFE 3 CORACOES MODO PT 110 | G180: 6 | H180: 4 | I180: 2 | J180: 2 | K180: 8 | L180: 6 | M180: 5.6
A181: maio | B181: 1308 | C181: GUARAPIRANGA SHOP | D181: CAFE TRES CORACOES S/A | E181: 1046036 | F181: MAQ CAFE 3 CORACOES MODO VER 110 | G181: 5 | H181: 5 | I181: 2 | J181: 3 | K181: 6.666666667 | L181: 3.666666667 | M181: 4.666666667
A182: maio | B182: 1308 | C182: GUARAPIRANGA SHOP | D182: CAFE TRES CORACOES S/A | E182: 1048561 | F182: MAQ CAFE 3 CORACOES MODO PT 110 | G182: 0 | H182: 4 | I182: 2 | J182: 2 | K182: 0 | L182: -2 | M182: 0
A183: maio | B183: 1322 | C183: INTERLAGOS | D183: CAFE TRES CORACOES S/A | E183: 1046036 | F183: MAQ CAFE 3 CORACOES MODO VER 110 | G183: 5 | H183: 5 | I183: 2 | J183: 3 | K183: 6.666666667 | L183: 3.666666667 | M183: 4.666666667
A184: maio | B184: 1360 | C184: SAO MIGUEL | D184: CAFE TRES CORACOES S/A | E184: 1046036 | F184: MAQ CAFE 3 CORACOES MODO VER 110 | G184: 5 | H184: 3 | I184: 2 | J184: 1 | K184: 6.666666667 | L184: 5.666666667 | M184: 4.666666667
A185: maio | B185: 1377 | C185: ITAQUERA METRO | D185: CAFE TRES CORACOES S/A | E185: 1046036 | F185: MAQ CAFE 3 CORACOES MODO VER 110 | G185: 5 | H185: 5 | I185: 2 | J185: 3 | K185: 6.666666667 | L185: 3.666666667 | M185: 4.666666667
A186: maio | B186: 1393 | C186: EX CAMPINAS C | D186: CAFE TRES CORACOES S/A | E186: 1046036 | F186: MAQ CAFE 3 CORACOES MODO VER 110 | G186: 5 | H186: 1 | I186: 1 | J186: 0 | K186: 6.666666667 | L186: 6.666666667 | M186: 4.666666667
A187: maio | B187: 1393 | C187: EX CAMPINAS C | D187: CAFE TRES CORACOES S/A | E187: 1048561 | F187: MAQ CAFE 3 CORACOES MODO PT 110 | G187: 0 | H187: 9 | I187: 2 | J187: 7 | K187: 0 | L187: -7 | M187: 0
A188: maio | B188: 1394 | C188: CATANDUVA | D188: CAFE TRES CORACOES S/A | E188: 1046036 | F188: MAQ CAFE 3 CORACOES MODO VER 110 | G188: 5 | H188: 0 | I188: 0 | J188: 0 | K188: 6.666666667 | L188: 6.666666667 | M188: 4.666666667
A189: maio | B189: 1880 | C189: EXTRA VARZEA GRANDE | D189: CAFE TRES CORACOES S/A | E189: 1046036 | F189: MAQ CAFE 3 CORACOES MODO VER 110 | G189: 5 | H189: 2 | I189: 2 | J189: 0 | K189: 6.666666667 | L189: 6.666666667 | M189: 4.666666667
A190: maio | B190: 1880 | C190: EXTRA VARZEA GRANDE | D190: CAFE TRES CORACOES S/A | E190: 1048561 | F190: MAQ CAFE 3 CORACOES MODO PT 110 | G190: 0 | H190: 0 | I190: 0 | J190: 0 | K190: 0 | L190: 0 | M190: 0
A191: maio | B191: 2060 | C191: CAMPINAS D. PEDRO | D191: CAFE TRES CORACOES S/A | E191: 1046036 | F191: MAQ CAFE 3 CORACOES MODO VER 110 | G191: 5 | H191: 7 | I191: 2 | J191: 5 | K191: 6.666666667 | L191: 1.666666667 | M191: 4.666666667
A192: maio | B192: 2061 | C192: EX JOAQUIM MURTINHO | D192: CAFE TRES CORACOES S/A | E192: 1046036 | F192: MAQ CAFE 3 CORACOES MODO VER 110 | G192: 5 | H192: 4 | I192: 2 | J192: 2 | K192: 6.666666667 | L192: 4.666666667 | M192: 4.666666667
A193: maio | B193: 2135 | C193: EXTRA TANCREDO NEVES | D193: CAFE TRES CORACOES S/A | E193: 1046036 | F193: MAQ CAFE 3 CORACOES MODO VER 110 | G193: 5 | H193: 8 | I193: 2 | J193: 6 | K193: 6.666666667 | L193: 0.6666666667 | M193: 4.666666667
A194: maio | B194: 1376 | C194: EXTRA NATAL P NEGRA | D194: CAFE TRES CORACOES S/A | E194: 1046035 | F194: MAQ CAFE 3 CORACOES MODO VER 220 | G194: 5 | H194: -1 | I194: 0 | J194: -1 | K194: 6.666666667 | L194: 7.666666667 | M194: 4.666666667
A195: maio | B195: 1363 | C195: EXTRA MACEIO | D195: CAFE TRES CORACOES S/A | E195: 1048562 | F195: MAQ CAFE 3 CORACOES MODO PT 220 | G195: 5 | H195: 6 | I195: 2 | J195: 4 | K195: 6.666666667 | L195: 2.666666667 | M195: 4.666666667
A196: maio | B196: 1305 | C196: CAMPINAS ABOLICAO | D196: CAFE TRES CORACOES S/A | E196: 1048561 | F196: MAQ CAFE 3 CORACOES MODO PT 110 | G196: 5 | H196: 3 | I196: 2 | J196: 1 | K196: 6.666666667 | L196: 5.666666667 | M196: 4.666666667
A197: maio | B197: 1335 | C197: EXTRA BARRA | D197: CAFE TRES CORACOES S/A | E197: 1048561 | F197: MAQ CAFE 3 CORACOES MODO PT 110 | G197: 5 | H197: 4 | I197: 2 | J197: 2 | K197: 6.666666667 | L197: 4.666666667 | M197: 4.666666667
A198: maio | B198: 1352 | C198: MAUA | D198: CAFE TRES CORACOES S/A | E198: 1048561 | F198: MAQ CAFE 3 CORACOES MODO PT 110 | G198: 5 | H198: 1 | I198: 1 | J198: 0 | K198: 6.666666667 | L198: 6.666666667 | M198: 4.666666667
A199: maio | B199: 1689 | C199: MINAS SHOPPING | D199: CAFE TRES CORACOES S/A | E199: 1048561 | F199: MAQ CAFE 3 CORACOES MODO PT 110 | G199: 5 | H199: 2 | I199: 2 | J199: 0 | K199: 6.666666667 | L199: 6.666666667 | M199: 4.666666667
A200: maio | B200: 238 | C200: EX HIPER SANTA ROSA | D200: CAFE TRES CORACOES S/A | E200: 1046036 | F200: MAQ CAFE 3 CORACOES MODO VER 110 | G200: 4 | H200: 6 | I200: 2 | J200: 4 | K200: 5.333333333 | L200: 1.333333333 | M200: 3.733333333
... 166 more rows

Sheet Plan2
A1: Loja | B1: Detalhado | C1: Regional | D1: Endereço | E1: Bairro | F1: Cidade | G1: UF | H1: CEP | I1: Fone | J1: CNPJ | K1: IE | L1: Tipo | M1: Data Inaugur.
A2: 1002 | B2: 002 QUINZE | C2: R36 SC JOINVILLE | D2: R. QUINZE DE NOVEMBRO, 541 | E2: CENTRO | F2: JOINVILLE | G2: SC | H2: 89201-601 | I2: (47) 3432-6002 | J2: 84.683.432/0003-04 | K2: 250338319 | L2: CONVENCIONAL | M2: 1978-06-29
A3: 1003 | B3: 003 PRINCIPE | C3: R36 SC JOINVILLE | D3: R. DO PRINCIPE, 192 | E3: CENTRO | F3: JOINVILLE | G3: SC | H3: 89201-600 | I3: (47) 3432-6003 | J3: 84.683.432/0010-25 | K3: 250837765 | L3: CONVENCIONAL | M3: 1981-08-04
A4: 1008 | B4: 008 VILA NOVA | C4: R36 SC JOINVILLE | D4: R. XV DE NOVEMBRO, 7100 | E4: VILA NOVA | F4: JOINVILLE | G4: SC | H4: 89237-000 | I4: (47) 3432-6008 | J4: 84.683.432/0028-54 | K4: 254017967 | L4: CONVENCIONAL | M4: 2000-04-05
A5: 1009 | B5: 009 BOEHMERWALD | C5: R36 SC JOINVILLE | D5: R. BOEHMERWALDT 873 | E5: BOEHMERWALD | F5: JOINVILLE | G5: SC | H5: 89232-100 | I5: (47) 3429-6009 | J5: 84.683.432/0030-79 | K5: 254110266 | L5: CONVENCIONAL | M5: 2000-10-09
A6: 1011 | B6: 011 LOJA 11 | C6: R36 SC JOINVILLE | D6: R. ALBANO SCHIMIDT, 5310 | E6: IRIRIÚ | F6: JOINVILLE | G6: SC | H6: 89227-702 | I6: (47) 3427-6011 | J6: 84.683.432/0033-11 | K6: 254418783 | L6: CONVENCIONAL | M6: 2002-07-22
A7: 1012 | B7: 012 FÁTIMA | C7: R36 SC JOINVILLE | D7: R. FÁTIMA, 2082 | E7: FÁTIMA | F7: JOINVILLE | G7: SC | H7: 89229-101 | I7: (47) 3417-2626 | J7: 84.683.432/0076-51 | K7: 255175060 | L7: CONVENCIONAL | M7: 2006-07-04
A8: 1021 | B8: 021 CRICIUMA | C8: R36 SC JOINVILLE | D8: R. SEIS DE JANEIRO, 56 | E8: CENTRO | F8: CRICIÚMA | G8: SC | H8: 88801-055 | I8: (48) 3442-9204 | J8: 84.683.432/0049-89 | K8: 254727808 | L8: CONVENCIONAL | M8: 2004-01-21
A9: 1024 | B9: 024 ARARANGUÁ | C9: R36 SC JOINVILLE | D9: AV. SETE DE SETEMBRO, 1527 | E9: CENTRO | F9: ARARANGUÁ | G9: SC | H9: 88900-000 | I9: (48) 3524-4748 | J9: 84.683.432/0067-60 | K9: 255042450 | L9: CONVENCIONAL | M9: 2005-09-27
A10: 1027 | B10: 027 IMBITUBA | C10: R36 SC JOINVILLE | D10: R. NEREU RAMOS, 511 | E10: CENTRO | F10: IMBITUBA | G10: SC | H10: 88780-000 | I10: (48) 3255-0319 | J10: 84.683.432/0070-66 | K10: 255070241 | L10: CONVENCIONAL | M10: 2005-11-29
A11: 1029 | B11: 029 LAGUNA | C11: R36 SC JOINVILLE | D11: R. GUSTAVO RICHARD, 514 | E11: CENTRO | F11: LAGUNA | G11: SC | H11: 88790-000 | I11: (48) 3644-6306 | J11: 84.683.432/0080-38 | K11: 255277601 | L11: CONVENCIONAL | M11: 2006-11-14
A12: 1036 | B12: 036 JAGUARUNA | C12: R36 SC JOINVILLE | D12: AV. DUQUE DE CAXIAS, 914 | E12: CENTRO | F12: JAGUARUNA | G12: SC | H12: 88715-000 | I12: (48) 3624-2661 | J12: 84.683.432/0085-42 | K12: 255317387 | L12: CONVENCIONAL | M12: 2007-01-30
A13: 1038 | B13: 038 BLUMENAU GARCIA | C13: R39 VALE DO ITAJAI | D13: R. AMAZONAS, 3600 | E13: GARCIA | F13: BLUMENAU | G13: SC | H13: 89022-000 | I13: (47) 3329-9394 | J13: 84.683.432/0112-50 | K13: 255471513 | L13: CONVENCIONAL | M13: 2007-10-09
A14: 1039 | B14: 039 BLUMENAU | C14: R39 VALE DO ITAJAI | D14: R. QUINZE DE NOVEMBRO, 505 | E14: CENTRO | F14: BLUMENAU | G14: SC | H14: 89010-001 | I14: (47) 3340-7979 | J14: 84.683.432/0055-27 | K14: 254938205 | L14: CONVENCIONAL | M14: 2005-09-20
A15: 1040 | B15: 040 BLUMENAU | C15: R39 VALE DO ITAJAI | D15: R. XV DE NOVEMBRO, 643 | E15: CENTRO | F15: BLUMENAU | G15: SC | H15: 89010-001 | I15: (47) 3326-5225 | J15: 84.683.432/0009-91 | K15: 253314607 | L15: CONVENCIONAL | M15: 1996-08-28
A16: 1041 | B16: 041 BLUMENAU | C16: R39 VALE DO ITAJAI | D16: R. XV DE NOVEMBRO, 1377 | E16: CENTRO | F16: BLUMENAU | G16: SC | H16: 89010-002 | I16: (47) 3326-3644 | J16: 84.683.432/0015-30 | K16: 253391750 | L16: CONVENCIONAL | M16: 1996-10-18
A17: 1043 | B17: 043 INDAIAL | C17: R39 VALE DO ITAJAI | D17: AV.MANOEL SIMÃO, 177 | E17: DAS NAÇÕES | F17: INDAIAL | G17: SC | H17: 89130-000 | I17: (47) 3394-9288 | J17: 84.683.432/0052-84 | K17: 254807801 | L17: CONVENCIONAL | M17: 2004-08-27
A18: 1044 | B18: 044 TIMBO | C18: R39 VALE DO ITAJAI | D18: R. GETULIO VARGAS, 051 | E18: CENTRO | F18: TIMBÓ | G18: SC | H18: 89120-000 | I18: (47) 3382-0855 | J18: 84.683.432/0035-83 | K18: 254519369 | L18: CONVENCIONAL | M18: 2003-03-06
A19: 1046 | B19: 046 ITAJAI | C19: R36 SC JOINVILLE | D19: R. HERCÍLIO LUZ, 680 SALA B | E19: CENTRO | F19: ITAJAÍ | G19: SC | H19: 88301-001 | I19: (47) 3348-3451 Cel. Da Analista Cissa 47-9 97041416 | J19: 84.683.432/0025-01 | K19: 253683440 | L19: CONVENCIONAL | M19: 1998-08-05
A20: 1047 | B20: 047 ITAJAI | C20: R36 SC JOINVILLE | D20: R. HERCÍLIO LUZ, 424 | E20: CENTRO | F20: ITAJAÍ | G20: SC | H20: 88301-000 | I20: Voip 54710475 (47) 3344-1617 Celular Vera 992307046 | J20: 84.683.432/0005-68 | K20: 254185630 | L20: CONVENCIONAL | M20: 2001-04-02
A21: 1048 | B21: 048 JARAGUA | C21: R36 SC JOINVILLE | D21: R. MARECHAL DEODORO DA FONSECA, 215 | E21: CENTRO | F21: JARAGUÁ DO SUL | G21: SC | H21: 89251-701 | I21: (47) 3371-0732 | J21: 84.683.432/0021-88 | K21: 253473470 | L21: CONVENCIONAL | M21: 1997-08-16
A22: 1054 | B22: 054 SAO JOSE | C22: R36 SC JOINVILLE | D22: AV. PRESIDENTE KENNEDY, 577 | E22: CAMPINAS | F22: SÃO JOSÉ | G22: SC | H22: 88101-000 | I22: (48) 3241-1434 | J22: 84.683.432/0026-92 | K22: 253759757 | L22: CONVENCIONAL | M22: 1998-09-21
A23: 1059 | B23: 059 TIJUCAS | C23: R36 SC JOINVILLE | D23: AV. BAYER FILHO, 1453 | E23: CENTRO | F23: TIJUCAS | G23: SC | H23: 88200-000 | I23: (48) 3263-7333 | J23: 84.683.432/0065-07 | K23: 255044852 | L23: CONVENCIONAL | M23: 2005-10-27
A24: 1060 | B24: 060 SAO BENTO DO SUL | C24: R41 CURITIBA/LITORAL | D24: AV. ARGOLO, 242 | E24: CENTRO | F24: SÃO BENTO DO SUL | G24: SC | H24: 89290-000 | I24: (47) 3634-0583 | J24: 84.683.432/0022-69 | K24: 253565693 | L24: CONVENCIONAL | M24: 1998-01-05
A25: 1061 | B25: 061 RIO NEGRINHO | C25: R41 CURITIBA/LITORAL | D25: R. JORGE ZIPPERER, 132 | E25: CENTRO | F25: RIO NEGRINHO | G25: SC | H25: 89295-000 | I25: (47) 3644-0862 | J25: 84.683.432/0024-20 | K25: 253624649 | L25: CONVENCIONAL | M25: 1998-03-28
A26: 1062 | B26: 062 SAO BENTO DO SUL | C26: R41 CURITIBA/LITORAL | D26: R. FELIPE SCHIMIDT, 08 | E26: CENTRO | F26: SÃO BENTO DO SUL | G26: SC | H26: 89290-000 | I26: (47) 3633-1624 | J26: 84.683.432/0041-21 | K26: 254539130 | L26: CONVENCIONAL | M26: 2003-05-02
A27: 1063 | B27: 063 MAFRA | C27: R41 CURITIBA/LITORAL | D27: R. FELIPE SCHIMIDT, 300 | E27: CENTRO | F27: MAFRA | G27: SC | H27: 89300-000 | I27: (47) 3645-3660 | J27: 84.683.432/0069-22 | K27: 255074859 | L27: CONVENCIONAL | M27: 2005-11-16
A28: 1064 | B28: 064 CANOINHAS | C28: R41 CURITIBA/LITORAL | D28: R. FRANCISCO DE PAULA PEREIRA, 351 | E28: CENTRO | F28: CANOINHAS | G28: SC | H28: 89460-000 | I28: (47) 3622-8998 | J28: 84.683.432/0071-47 | K28: 255089481 | L28: CONVENCIONAL | M28: 2006-01-17
A29: 1065 | B29: 065 AVENTUREIRO | C29: R36 SC JOINVILLE | D29: R. TUIUTI, 2185 | E29: AVENTUREIRO | F29: JOINVILLE | G29: SC | H29: 89226-000 | I29: (47) 3427-6270 (Voip 54710654) | J29: 84.683.432/0104-40 | K29: 255420064 | L29: CONVENCIONAL | M29: 2007-10-11
A30: 1068 | B30: 068 LUIZ ALVES | C30: R39 VALE DO ITAJAI | D30: R. PROFESSOR SIMÃO HESS, 619 SALA 01 | E30: VILA DO SALTO | F30: LUIZ ALVES | G30: SC | H30: 89115-000 | I30: (47) 3377-0325 (47) 3377-0318/ (44) 9 8427-3047 | J30: 84.683.432/0129-06 | K30: 255735340 | L30: SALFER MAIS | M30: 2008-12-18
A31: 1069 | B31: 069 ITAIOPOLIS | C31: R41 CURITIBA/LITORAL | D31: R. NEREU RAMOS, 83 | E31: CENTRO | F31: ITAIÓPOLIS | G31: SC | H31: 89340-000 | I31: (47) 3652-1517 | J31: 84.683.432/0089-76 | K31: 255357818 | L31: SALFER MAIS | M31: 2007-04-10
A32: 1071 | B32: 071 GASPAR | C32: R39 VALE DO ITAJAI | D32: R. CORONEL ARISTILIANO RAMOS, 497 | E32: CENTRO | F32: GASPAR | G32: SC | H32: 89110-000 | I32: (47) 3332-1113 | J32: 84.683.432/0023-40 | K32: 253610966 | L32: CONVENCIONAL | M32: 2002-05-08
A33: 1072 | B33: 072 BRUSQUE | C33: R39 VALE DO ITAJAI | D33: AV. CÔNSUL CARLOS RENAUX, 108 | E33: CENTRO | F33: BRUSQUE | G33: SC | H33: 88350-000 | I33: (47) 3351-5053 | J33: 84.683.432/0027-73 | K33: 253728312 | L33: CONVENCIONAL | M33: 1999-04-17
A34: 1073 | B34: 073 POMERODE | C34: R39 VALE DO ITAJAI | D34: R. PAULO ZIMMERMANN, 65 | E34: CENTRO | F34: POMERODE | G34: SC | H34: 89107-000 | I34: (47) 3395-0960 | J34: 84.683.432/0044-74 | K34: 254666159 | L34: CONVENCIONAL | M34: 2003-11-24
A35: 1074 | B35: 074 RIO DO SUL | C35: R39 VALE DO ITAJAI | D35: ALAMEDA ARISTILIANO RAMOS, 264 | E35: CENTRO | F35: RIO DO SUL | G35: SC | H35: 89160-000 | I35: (47) 3521-6068 Cel da Analista Ana Carolina 98846 0234 | J35: 84.683.432/0039-07 | K35: 254535569 | L35: CONVENCIONAL | M35: 2003-04-15
A36: 1076 | B36: 076 IBIRAMA | C36: R39 VALE DO ITAJAI | D36: R. TIRADENTES, 508 | E36: CENTRO | F36: IBIRAMA | G36: SC | H36: 89140-000 | I36: (47) 3357-5046 | J36: 84.683.432/0051-01 | K36: 254812708 | L36: CONVENCIONAL | M36: 2004-09-17
A37: 1078 | B37: 078 LAGES | C37: R39 VALE DO ITAJAI | D37: R. CORREIA PINTO, 141 | E37: CENTRO | F37: LAGES | G37: SC | H37: 88502-201 | I37: (49) 3222-5257 | J37: 84.683.432/0068-41 | K37: 255052103 | L37: CONVENCIONAL | M37: 2005-10-25
A38: 1079 | B38: 079 LAGES II | C38: R39 VALE DO ITAJAI | D38: R. PRESIDENTE NEREU RAMOS, 266 | E38: CENTRO | F38: LAGES | G38: SC | H38: 88502-170 | I38: (49) 3224-3902 | J38: 84.683.432/0139-70 | K38: 255826265 | L38: CONVENCIONAL | M38: 2009-05-05
A39: 1082 | B39: 082 GUARAMIRIM | C39: R36 SC JOINVILLE | D39: R. 28 DE AGOSTO, 1399 | E39: CENTRO | F39: GUARAMIRIM | G39: SC | H39: 89270-000 | I39: (47) 3373-6377 | J39: 84.683.432/0042-02 | K39: 254601189 | L39: CONVENCIONAL | M39: 2003-08-04
A40: 1083 | B40: 083 PIÇARRAS | C40: R36 SC JOINVILLE | D40: AV. NEREU RAMOS, 249 | E40: CENTRO | F40: PIÇARRAS | G40: SC | H40: 88380-000 | I40: (47) 3347-0750 | J40: 84.683.432/0087-04 | K40: 255319886 | L40: SALFER MAIS | M40: 2007-02-27
A41: 1084 | B41: 084 ITUPORANGA | C41: R39 VALE DO ITAJAI | D41: R. PRESIDENTE NEREU, 459 | E41: CENTRO | F41: ITUPORANGA | G41: SC | H41: 88400-000 | I41: (47) 3533-3105 | J41: 84.683.432/0054-46 | K41: 254894801 | L41: CONVENCIONAL | M41: 2005-01-25
A42: 1085 | B42: 085 BARRA VELHA | C42: R36 SC JOINVILLE | D42: R. PARANÁ, 200 | E42: CENTRO | F42: BARRA VELHA | G42: SC | H42: 88390-000 | I42: (47) 3456-0099 | J42: 84.683.432/0092-71 | K42: 255376278 | L42: CONVENCIONAL | M42: 2007-05-29
A43: 1086 | B43: 086 CAMBORIU | C43: R36 SC JOINVILLE | D43: AV. DO ESTADO, 3124 | E43: CENTRO | F43: BALNEÁRIO CAMBORIÚ | G43: SC | H43: 88338-065 | I43: (47) 3264-6170 | J43: 84.683.432/0036-64 | K43: 254533809 | L43: CONVENCIONAL | M43: 2003-04-10
A44: 1088 | B44: 088 ITAPEMA | C44: R36 SC JOINVILLE | D44: AV. NEREU RAMOS, 3367 | E44: MEIA PRAIA | F44: ITAPEMA | G44: SC | H44: 88220-000 | I44: (47) 3368-8158 | J44: 84.683.432/0081-19 | K44: 255286341 | L44: CONVENCIONAL | M44: 2006-11-21
A45: 1089 | B45: 089 PENHA | C45: R36 SC JOINVILLE | D45: AV. NEREU RAMOS, 262 | E45: CENTRO | F45: PENHA | G45: SC | H45: 88385-000 | I45: 47-9-84447193//(47) 3347-0089 | J45: 84.683.432/0086-23 | K45: 255319878 | L45: SALFER MAIS | M45: 2007-02-06
A46: 1090 | B46: 090 SAO JOSE DOS PINHAIS | C46: R41 CURITIBA/LITORAL | D46: R. XV DE NOVEMBRO, 1494 | E46: CENTRO | F46: SÃO JOSÉ DOS PINHAIS | G46: PR | H46: 83005-000 | I46: (41) 3382-2219 // 47 984447896 | J46: 84.683.432/0006-49 | K46: 90241975-62 | L46: CONVENCIONAL | M46: 2001-09-24
A47: 1091 | B47: 091 MAL. DEODORO | C47: R41 CURITIBA/LITORAL | D47: R. MARECHAL DEODORO, 245 | E47: CENTRO | F47: CURITIBA | G47: PR | H47: 80020-320 | I47: (41) 3322-4447 | J47: 84.683.432/0031-50 | K47: 90250407-99 | L47: CONVENCIONAL | M47: 2002-02-11
A48: 1094 | B48: 094 FAZENDA RIO GRANDE | C48: R41 CURITIBA/LITORAL | D48: R. CESAR CARELLI, 217 | E48: PIONEIROS | F48: FAZENDA RIO GRANDE | G48: PR | H48: 83820-000 | I48: (41) 3627-6448 | J48: 84.683.432/0048-06 | K48: 90299241-36 | L48: CONVENCIONAL | M48: 2004-03-05
A49: 1095 | B49: 095 RIO BRANCO DO SUL | C49: R41 CURITIBA/LITORAL | D49: R. DOMINGOS FARIAS, 26 | E49: CENTRO | F49: RIO BRANCO DO SUL | G49: PR | H49: 83540-000 | I49: (41) 3652-6343 | J49: 84.683.432/0053-65 | K49: 90316015-22 | L49: CONVENCIONAL | M49: 2004-09-24
A50: 1097 | B50: 097 SITIO CERCADO | C50: R41 CURITIBA/LITORAL | D50: R. IZAAC FERREIRA DA CRUZ, 3330 | E50: SÍTIO CERCADO | F50: CURITIBA | G50: PR | H50: 81910-000 | I50: (41) 3265-1547 | J50: 84.683.432/0144-37 | K50: 90476635-60 | L50: CONVENCIONAL | M50: 2009-03-31
A51: 1104 | B51: 104 PIRAQUARA | C51: R41 CURITIBA/LITORAL | D51: AV.GETULIO VARGAS, 647, Q 08, L02 | E51: CENTRO | F51: PIRAQUARA | G51: PR | H51: 83301-010 | I51: (41) 3589-4323 | J51: 84.683.432/0160-57 | K51: 9049387340 | L51: CONVENCIONAL | M51: 2009-12-22
A52: 1105 | B52: 105 ARAUCARIA | C52: R41 CURITIBA/LITORAL | D52: R. PRESIDENTE CARLOS CAVALCANTI, 200 | E52: CENTRO | F52: ARAUCÁRIA | G52: PR | H52: 83702-470 | I52: (41) 3643-7445 | J52: 84.683.432/0123-02 | K52: 90431442-08 | L52: CONVENCIONAL | M52: 2008-03-13
A53: 1106 | B53: 106 PINHAIS | C53: R41 CURITIBA/LITORAL | D53: AV. JACOB MACANHAN, 468, LOJA 02 | E53: JARDIM GUAIRACÁ | F53: PINHAIS | G53: PR | H53: 83324-510 | I53: (41) 3668-6141 | J53: 84.683.432/0090-00 | K53: 90400735-80 | L53: CONVENCIONAL | M53: 2007-04-17
A54: 1107 | B54: 107 CAMPO LARGO | C54: R41 CURITIBA/LITORAL | D54: R. XV DE NOVEMBRO,2132 | E54: CENTRO | F54: CAMPO LARGO | G54: PR | H54: 83601-030 | I54: (41) 3393-5319 Corporativo (47) 984447902 | J54: 84.683.432/0174-52 | K54: 90507181-55 | L54: CONVENCIONAL | M54: 2010-02-23
A55: 1109 | B55: 109 GUARATUBA | C55: R41 CURITIBA/LITORAL | D55: AV. 29 DE ABRIL ,406 | E55: CENTRO | F55: GUARATUBA | G55: PR | H55: 83280-970 | I55: (41) 3472-3414 | J55: 84.683.432/0159-13 | K55: 90490511-98 | L55: CONVENCIONAL | M55: 2009-08-20
A56: 1113 | B56: 113 CASTRO | C56: R41 CURITIBA/LITORAL | D56: R. DOUTOR JORGE XAVIER DA SILVA, 101 | E56: CENTRO | F56: CASTRO | G56: PR | H56: 84165-000 | I56: (42) 3232-0411 | J56: 84.683.432/0056-08 | K56: 90334685-01 | L56: CONVENCIONAL | M56: 2005-04-25
A57: 1114 | B57: 114 TELÊMACO BORBA | C57: R41 CURITIBA/LITORAL | D57: AV. HORÁCIO KLABIN, 307 | E57: CENTRO | F57: TELÊMACO BORBA | G57: PR | H57: 84261-000 | I57: (42) 3272-8243 | J57: 84.683.432/0094-33 | K57: 90402249-79 | L57: CONVENCIONAL | M57: 2007-07-24
A58: 1115 | B58: 115 RESERVA | C58: R41 CURITIBA/LITORAL | D58: AV. CORONEL ROGERIO BORBA, 493 - A | E58: CENTRO | F58: RESERVA | G58: PR | H58: 84320-000 | I58: (42) 3276-2209 | J58: 84.683.432/0111-79 | K58: 90413851-78 | L58: SALFER MAIS | M58: 2007-11-06
A59: 1117 | B59: 117 MARINGA II | C59: R38 OESTE PARANAENSE | D59: AV. BRASIL, 3415 | E59: ZONA I | F59: MARINGÁ | G59: PR | H59: 87013-000 | I59: (44) 3222-2630 | J59: 84.683.432/0091-90 | K59: 90401245-91 | L59: CONVENCIONAL | M59: 2007-05-02
A60: 1118 | B60: 118 APUCARANA | C60: R38 OESTE PARANAENSE | D60: R. PROFESSOR JOÃO CANDIDO FERREIRA, 355 | E60: CENTRO | F60: APUCARANA | G60: PR | H60: 86800-100 | I60: (43) 3423-0320 | J60: 84683432/0061-75 | K60: 90338954-00 | L60: CONVENCIONAL | M60: 2005-06-07
A61: 1119 | B61: 119 CAMPO MOURÃO | C61: R38 OESTE PARANAENSE | D61: R. SÃO PAULO, 1378 | E61: CENTRO | F61: CAMPO MOURÃO | G61: PR | H61: 87303-140 | I61: (44) 3525-1411 | J61: 84.683.432/0062-56 | K61: 90338162-08 | L61: CONVENCIONAL | M61: 2005-05-31
A62: 1120 | B62: 120 MARINGÁ | C62: R38 OESTE PARANAENSE | D62: AV. BRASIL, 3326 | E62: CENTRO | F62: MARINGÁ | G62: PR | H62: 87013-000 | I62: (44) 3227-6310 | J62: 84.683.432/0057-99 | K62: 90340251-23 | L62: CONVENCIONAL | M62: 2005-06-21
A63: 1121 | B63: 121 ARAPONGAS | C63: R38 OESTE PARANAENSE | D63: AV. ARAPONGAS, 470 | E63: CENTRO | F63: ARAPONGAS | G63: PR | H63: 86701-000 | I63: (43) 3275-7135 | J63: 84683432/0063-37 | K63: 90340011-00 | L63: CONVENCIONAL | M63: 2005-07-26
A64: 1124 | B64: 124 CORNÉLIO PROCÓPIO | C64: R38 OESTE PARANAENSE | D64: AV. XV DE NOVEMBRO, 702 | E64: CENTRO | F64: CORNÉLIO PROCÓPIO | G64: PR | H64: 86300-000 | I64: (43) 3523-5954 | J64: 84.683.432/0099-48 | K64: 90405471-23 | L64: CONVENCIONAL | M64: 2007-08-21
A65: 1126 | B65: 126 PAIÇANDU | C65: R38 OESTE PARANAENSE | D65: AV. IVAI, 537 | E65: CENTRO | F65: PAIÇANDU | G65: PR | H65: 87140-000 | I65: (44) 3244-6035 | J65: 84.683.432/0175-33 | K65: 90507402-40 | L65: SALFER MAIS | M65: 2010-02-18
A66: 1130 | B66: 130 CIANORTE | C66: R38 OESTE PARANAENSE | D66: AV. GOIAS, 577 | E66: CENTRO | F66: CIANORTE | G66: PR | H66: 87200-000 | I66: (44) 3631-1525 | J66: 84683432/0060-94 | K66: 90338756-46 | L66: CONVENCIONAL | M66: 2005-06-28
A67: 1131 | B67: 131 PARANAVAÍ | C67: R38 OESTE PARANAENSE | D67: R. GETÚLIO VARGAS, 1135 | E67: CENTRO | F67: PARANAVAÍ | G67: PR | H67: 87202-000 | I67: (44) 3423-6077 | J67: 84.683.432/0064-18 | K67: 90343995-54 | L67: CONVENCIONAL | M67: 2005-08-02
A68: 1132 | B68: 132 ROLÂNDIA | C68: R38 OESTE PARANAENSE | D68: AV. EXPEDICIONÁRIO, 183 | E68: CENTRO | F68: ROLÂNDIA | G68: PR | H68: 86600-000 | I68: (43) 3256-9393 | J68: 84.683.432/0083-80 | K68: 90388376-61 | L68: CONVENCIONAL | M68: 2006-12-12
A69: 1133 | B69: 133 UMUARAMA | C69: R38 OESTE PARANAENSE | D69: AV. PARANÁ, 4438 ZONA 01 | E69: CENTRO | F69: UMUARAMA | G69: PR | H69: 87501-030 | I69: (44) 3624-6090 | J69: 84.683.432/0072-28 | K69: 90362666-67 | L69: CONVENCIONAL | M69: 2006-03-28
A70: 1134 | B70: 134 COLORADO | C70: R38 OESTE PARANAENSE | D70: R. MINAS GERAIS, 552 | E70: CENTRO | F70: COLORADO | G70: PR | H70: 86690-000 | I70: (44) 3323-5777 | J70: 84.683.432/0093-52 | K70: 90402244-64 | L70: SALFER MAIS | M70: 2007-06-05
A71: 1135 | B71: 135 JANDAIA DO SUL | C71: R38 OESTE PARANAENSE | D71: AV. GETULIO VARGAS, 900 | E71: CENTRO | F71: JANDAIA DO SUL | G71: PR | H71: 86900-000 | I71: (43) 3432-6886 | J71: 84.683.432/0098-67 | K71: 90405468-28 | L71: SALFER MAIS | M71: 2007-07-05
A72: 1136 | B72: 136 MANDAGUARI | C72: R38 OESTE PARANAENSE | D72: AV. AMAZONAS, 871 | E72: CENTRO | F72: MANDAGUARI | G72: PR | H72: 86975-000 | I72: (44) 3233-5015 | J72: 84.683.432/0127-36 | K72: 9044516141 | L72: CONVENCIONAL | M72: 2008-07-29
A73: 1137 | B73: 137 MANDAGUAÇÚ | C73: R38 OESTE PARANAENSE | D73: R. MUNHOZ DA ROCHA, 943 | E73: CENTRO | F73: MANDAGUAÇÚ | G73: PR | H73: 87160-000 | I73: (44) 3245-3608 | J73: 84.683.432/0097-86 | K73: 90403435-52 | L73: SALFER MAIS | M73: 2007-05-22
A74: 1138 | B74: 138 NOVA ESPERANÇA | C74: R38 OESTE PARANAENSE | D74: AV. 14 DE DEZEMBRO, 409 | E74: CENTRO | F74: NOVA ESPERANÇA | G74: PR | H74: 87600-000 | I74: (44) 3252-3028 | J74: 84.683.432/0105-20 | K74: 90412796-53 | L74: SALFER MAIS | M74: 2007-11-27
A75: 1139 | B75: 139 ASTORGA | C75: R38 OESTE PARANAENSE | D75: AV. PRESIDENTE VARGAS, 61 LOJA 1/B | E75: CENTRO | F75: ASTORGA | G75: PR | H75: 86730-000 | I75: (44) 3234-7754 | J75: 84.683.432/0096-03 | K75: 90403439-86 | L75: SALFER MAIS | M75: 2007-08-02
A76: 1142 | B76: 142 MARIALVA | C76: R38 OESTE PARANAENSE | D76: AV. CRISTOVÃO COLOMBO, 1337 | E76: CENTRO | F76: MARIALVA | G76: PR | H76: 86990-000 | I76: (44) 3232-5854 | J76: 84.683.432/0165-61 | K76: 90497149-95 | L76: SALFER MAIS | M76: 2009-10-27
A77: 1144 | B77: 144 IBAITI | C77: R41 CURITIBA/LITORAL | D77: R. PARANÁ, 345 | E77: CENTRO | F77: IBAITI | G77: PR | H77: 84900-000 | I77: (43) 3546-5966 | J77: 84.683.432/0107-92 | K77: 90412795-72 | L77: CONVENCIONAL | M77: 2007-10-23
A78: 1145 | B78: 145 ARAPOTI | C78: R41 CURITIBA/LITORAL | D78: R. TELEMACO CARNEIRO, 1015 | E78: CENTRO | F78: ARAPOTI | G78: PR | H78: 84990-000 | I78: (43) 3557-4593 | J78: 84.683.432/0106-01 | K78: 90412788-43 | L78: SALFER MAIS | M78: 2007-10-16
A79: 1146 | B79: 146 JAGUARIAIVA | C79: R41 CURITIBA/LITORAL | D79: AV. ANTONIO CUNHA, 582 | E79: CENTRO | F79: JAGUARIAÍVA | G79: PR | H79: 84200-000 | I79: (43) 3535-3638 | J79: 84.683.432/0116-83 | K79: 90420601-67 | L79: SALFER MAIS | M79: 2007-11-20
A80: 1147 | B80: 147 WENCESLAU BRAZ | C80: R41 CURITIBA/LITORAL | D80: ALAMEDA MANOEL RIBAS, 188 | E80: CENTRO | F80: WENCESLAU BRAZ | G80: PR | H80: 84950-000 | I80: (43) 3528-1395 | J80: 84.683.432/0115-00 | K80: 90417451-31 | L80: SALFER MAIS | M80: 2007-10-30
A81: 1148 | B81: 148 BLUMENAU FORTALEZA | C81: R39 VALE DO ITAJAI | D81: R. FRANCISCO VAHLDIECK, 686, SALA 3 | E81: FORTALEZA | F81: BLUMENAU | G81: SC | H81: 89056-000 | I81: (47) 3338-4126 | J81: 84.683.432/0203-21 | K81: 256195935 | L81: CONVENCIONAL | M81: 2010-09-30
A82: 1150 | B82: 150 SIQUEIRA CAMPOS | C82: R41 CURITIBA/LITORAL | D82: R. RIO GRANDE DO SUL, 1.347 | E82: CENTRO | F82: SIQUEIRA CAMPOS | G82: PR | H82: 84940-000 | I82: (43) 3571-4711 | J82: 84.683.432/0110-98 | K82: 90413766-91 | L82: SALFER MAIS | M82: 2007-11-13
A83: 1151 | B83: 151 PALMEIRA | C83: R41 CURITIBA/LITORAL | D83: R. CONCEIÇÃO, 174 | E83: CENTRO | F83: PALMEIRA | G83: PR | H83: 84130-000 | I83: (42) 3252-1268 | J83: 84.683.432/0120-60 | K83: 90429444-64 | L83: SALFER MAIS | M83: 2008-03-18
A84: 1154 | B84: 154 SÃO JOÃO BATISTA | C84: R39 VALE DO ITAJAI | D84: R. BENJAMIN DUARTE, 45 - SALA 01 | E84: CENTRO | F84: SÃO JOÃO BATISTA | G84: SC | H84: 88240-000 | I84: (48) 3265-4892 | J84: 84.683.432/0171-00 | K84: 255992769 | L84: CONVENCIONAL | M84: 2009-12-10
A85: 1156 | B85: 156 PRESIDENTE GETULIO | C85: R39 VALE DO ITAJAI | D85: R. CURT HERING, 625 - SALA 02 | E85: CENTRO | F85: PRESIDENTE GETÚLIO | G85: SC | H85: 89150-000 | I85: (47) 3352-2363 | J85: 84.683.432/0132-01 | K85: 255822499 | L85: SALFER MAIS | M85: 2009-03-30
A86: 1157 | B86: 157 SÃO FRANCISCO DO SUL | C86: R36 SC JOINVILLE | D86: R. BARÃO DO RIO BRANCO, 489 - B | E86: CENTRO | F86: SÃO FRANCISCO DO SUL | G86: SC | H86: 89240-000 | I86: (47) 3444-0002 | J86: 84.683.432/0109-54 | K86: 255463111 | L86: CONVENCIONAL | M86: 2007-09-27
A87: 1158 | B87: 158 NAVEGANTES II | C87: R36 SC JOINVILLE | D87: AV. JOÃO SACAVEM, 214 | E87: CENTRO | F87: NAVEGANTES | G87: SC | H87: 88375-000 | I87: (47) 3342-5674 | J87: 84.683.432/0113-30 | K87: 255459742 | L87: CONVENCIONAL | M87: 2007-09-20
A88: 1160 | B88: 160 OTACÍLIO COSTA | C88: R39 VALE DO ITAJAI | D88: AV. OLINKRAFT, 2590 | E88: CENTRO | F88: OTACÍLIO COSTA | G88: SC | H88: 88540-000 | I88: (49) 3275-2998 | J88: 84.683.432/0119-26 | K88: 255529899 | L88: CONVENCIONAL | M88: 2008-02-26
A89: 1162 | B89: 162 BIGUACU | C89: R36 SC JOINVILLE | D89: AV. GETULIO VARGAS, 110 | E89: CENTRO | F89: BIGUAÇÚ | G89: SC | H89: 88160-000 | I89: (48) 3243-6427 | J89: 84.683.432/0167-23 | K89: 255957254 | L89: CONVENCIONAL | M89: 2010-05-27
A90: 1168 | B90: 168 BLUMENAU ITOUPAVA NORTE | C90: R39 VALE DO ITAJAI | D90: R. 02 DE SETEMBRO,3185 | E90: ITOUPAVA NORTE | F90: BLUMENAU | G90: SC | H90: 89052-002 | I90: (47) 3338-6270 | J90: 84.683.432/0149-41 | K90: 255879083 | L90: CONVENCIONAL | M90: 2009-06-30
A91: 1170 | B91: 170 CAMPINA GRANDE DO SUL | C91: R41 CURITIBA/LITORAL | D91: R. PROFESSOR DUILIO CALDERARI, 1843 | E91: JARDIM PAULISTA | F91: CAMPINA GRANDE DO SUL | G91: PR | H91: 83430-000 | I91: (41) 3679-4088 | J91: 84.683.432/0074-90 | K91: 90369437-82 | L91: SALFER MAIS | M91: 2008-07-22
A92: 1171 | B92: 171 CAÇADOR | C92: R39 VALE DO ITAJAI | D92: AV.BARÃO DO RIO BRANCO,452 | E92: CENTRO | F92: CAÇADOR | G92: SC | H92: 89500-000 | I92: (49) 3567-0278 | J92: 84.683.432/0201-60 | K92: 256175306 | L92: CONVENCIONAL | M92: 2010-09-30
A93: 1181 | B93: 181 XAXIM | C93: R39 VALE DO ITAJAI | D93: AV.PLINIO ARLINDO DE NES, 917, SALA 01 | E93: CENTRO | F93: XAXIM | G93: SC | H93: 89825-000 | I93: (49) 3353-2032 | J93: 84.683.432/0142-75 | K93: 255983379 | L93: CONVENCIONAL | M93: 2009-12-22
A94: 1183 | B94: 183 CAPINZAL | C94: R39 VALE DO ITAJAI | D94: AV. XV DE NOVEMBRO, 167, TÉRREO,1º ANDAR | E94: CENTRO | F94: CAPINZAL | G94: SC | H94: 89665-000 | I94: (49) 3555-2336 Celular da Analista da Loja Sandra (49) 9 99117911 | J94: 84.683.432/0195-87 | K94: 256383626 | L94: CONVENCIONAL | M94: 2011-06-09
A95: 1193 | B95: 193 PAPANDUVA | C95: R41 CURITIBA/LITORAL | D95: R. TENENTE ARY RAUEN, Nº 895 | E95: CENTRO | F95: PAPANDUVA | G95: SC | H95: 89370-970 | I95: (47) 3653-1074 | J95: 84.683.432/0162-19 | K95: 255930526 | L95: SALFER MAIS | M95: 2009-09-10
A96: 1197 | B96: 197 FLORIANOPOLIS INGLESES | C96: R36 SC JOINVILLE | D96: RODOVIA SC 403, 6539 | E96: INGLESES | F96: FLORIANÓPOLIS | G96: SC | H96: 88000-000 | I96: (48) 3284-2164 | J96: 84.683.432/0207-55 | K96: 256211477 | L96: CONVENCIONAL | M96: 2010-11-23
A97: 1198 | B97: 198 FLORIANOPOLIS FELIPE SCHMIDT | C97: R36 SC JOINVILLE | D97: R. FELIPE SCHMIDT, 165 | E97: CENTRO | F97: FLORIANÓPOLIS | G97: SC | H97: 88010-000 | I97: (48) 3223-8121 | J97: 84.683.432/0155-90 | K97: 255920024 | L97: CONVENCIONAL | M97: 2009-08-31
A98: 1225 | B98: 225 REALEZA | C98: R38 OESTE PARANAENSE | D98: AV. BRUNO ZUTTION, 3166 | E98: CENTRO | F98: REALEZA | G98: PR | H98: 85770-000 | I98: (46) 3543-3502 | J98: 84.683.432/0146-07 | K98: 90477404-92 | L98: SALFER MAIS | M98: 2009-04-30
A99: 1237 | B99: 237 CHOPINZINHO | C99: R38 OESTE PARANAENSE | D99: AV. XV DE NOVEMBRO, 4334 Q19 - L09 | E99: CENTRO | F99: CHOPINZINHO | G99: PR | H99: 85560-000 | I99: (46) 3242-1757 | J99: 84.683.432/0158-32 | K99: 9048749817 | L99: SALFER MAIS | M99: 2009-07-21
A100: 1238 | B100: 238 PATO BRANCO | C100: R38 OESTE PARANAENSE | D100: AV. TUPY, 2377 | E100: CENTRO | F100: PATO BRANCO | G100: PR | H100: 85501-000 | I100: (46) 3225-0995 | J100: 84.683.432/0140-03 | K100: 90476562-70 | L100: CONVENCIONAL | M100: 2009-04-22
A101: 1239 | B101: 239 CASCAVEL | C101: R38 OESTE PARANAENSE | D101: AV. BRASIL, 5826 | E101: CENTRO | F101: CASCAVEL | G101: PR | H101: 85801-000 | I101: (45) 3224-3352 | J101: 84.683.432/0141-94 | K101: 90478190-80 | L101: CONVENCIONAL | M101: 2009-05-26
A102: 1241 | B102: 241 UBIRATÃ | C102: R38 OESTE PARANAENSE | D102: AV. NILZA DE OLIVEIRA PIPINO,1723 | E102: CENTRO | F102: UBIRATÃ | G102: PR | H102: 85440-000 | I102: (44) 3543-2527 | J102: 84.683.432/0077-32 | K102: 90377475-45 | L102: CONVENCIONAL | M102: 2009-05-21
A103: 1242 | B103: 242 ASSIS CHATEAUBRIAND | C103: R38 OESTE PARANAENSE | D103: AV. TUPÃSSI, 835 | E103: CENTRO | F103: ASSIS CHATEAUBRIAND | G103: PR | H103: 85935-000 | I103: (44) 3528-2822 | J103: 84.683.432/0046-36 | K103: 90294126-66 | L103: CONVENCIONAL | M103: 2009-05-19
A104: 1243 | B104: 243 GOIOERE | C104: R38 OESTE PARANAENSE | D104: AV. MOISES LUPION,470 | E104: CENTRO | F104: GOIOERE | G104: PR | H104: 87360-000 | I104: (44) 3522-1851 | J104: 84.683.432/0181-81 | K104: 90513229-64 | L104: CONVENCIONAL | M104: 2010-04-27
A105: 1260 | B105: 260 DOIS VIZINHOS | C105: R38 OESTE PARANAENSE | D105: TRAVESSA DR. ARNALDO BUSATO, 55 | E105: CENTRO | F105: DOIS VIZINHOS | G105: PR | H105: 85660-000 | I105: (46) 3536-2946 | J105: 84.683.432/0172-90 | K105: 90502138-94 | L105: CONVENCIONAL | M105: 2009-12-15
A106: 1261 | B106: 261 QUEDAS DO IGUAÇU | C106: R38 OESTE PARANAENSE | D106: R. JACARANDA, 500 | E106: CENTRO | F106: QUEDAS DO IGUAÇU | G106: PR | H106: 85460-000 | I106: (46) 3532-3196 | J106: 84.683.432/0198-20 | K106: 90529457-10 | L106: CONVENCIONAL | M106: 2010-09-30
A107: 1262 | B107: 262 LARANJEIRAS DO SUL | C107: R38 OESTE PARANAENSE | D107: R. XV DE NOVEMBRO, 2562 | E107: CENTRO | F107: LARANJEIRAS DO SUL | G107: PR | H107: 85301-050 | I107: (42) 3635-2811 Cel..Pessoal da Gerente Patrícia (42) 984352551 Cel. Da Edinéia (Caixa) (42) 999243711 | J107: 84.683.432/0200-89 | K107: 90529755-46 | L107: CONVENCIONAL | M107: 2011-01-27
A108: 1263 | B108: 263 TOLEDO II | C108: R38 OESTE PARANAENSE | D108: R. BARÃO DO RIO BRANCO, 1199 | E108: CENTRO | F108: TOLEDO | G108: PR | H108: 85900-005 | I108: (45) 3378-1656 | J108: 84.683.432/0202-40 | K108: 90535237-70 | L108: CONVENCIONAL | M108: 2010-12-14
A109: 1264 | B109: 264 CANDOI | C109: R41 CURITIBA/LITORAL | D109: AV. ANIZIO PEDRO DA LUZ, 159, SALA 02 | E109: CENTRO | F109: CANDÓI | G109: PR | H109: 85140-000 | I109: (42) 3638-1612 | J109: 84.683.432/0206-74 | K109: 90535751-42 | L109: SALFER MAIS | M109: 2010-11-18
A110: 1268 | B110: 268 CLEVELÂNDIA | C110: R38 OESTE PARANAENSE | D110: AV. NOSSA SENHORA DA LUZ, 221 | E110: Centro | F110: CLEVELÂNDIA | G110: PR | H110: 85530-000 | I110: (48)984769460//(46) 3252-2833 | J110: 84.683.432/0216-46 | K110: 90538109-15 | L110: SALFER MAIS | M110: 2010-11-23
A111: 1270 | B111: 270 PALMAS | C111: R38 OESTE PARANAENSE | D111: R. DR. BERNARDO RIBEIRO VIANA, 903 | E111: Centro | F111: PALMAS | G111: PR | H111: 85555-000 | I111: (46) 3262-5857 | J111: 84.683.432/0215-65 | K111: 90537453-23 | L111: CONVENCIONAL | M111: 2010-11-25
A112: 1271 | B112: 271 UNIÃO DA VITÓRIA | C112: R41 CURITIBA/LITORAL | D112: R. PROFESSORA AMAZILIA, 302 | E112: CENTRO | F112: UNIÃO DA VITÓRIA | G112: PR | H112: 84600-000 | I112: (42) 3524-7071 | J112: 84.683.432/0218-08 | K112: 90545273-89 | L112: CONVENCIONAL | M112: 2011-03-31
A113: 1272 | B113: 272 GUARAPUAVA | C113: R41 CURITIBA/LITORAL | D113: R. PADRE CHAGAS, 3576 | E113: CENTRO | F113: GUARAPUAVA | G113: PR | H113: 85010-020 | I113: (42) 3627-6902 | J113: 84.683.432/0222-94 | K113: 90551341-94 | L113: CONVENCIONAL | M113: 2011-05-03
A114: 1280 | B114: 280 LAGES / CORAL | C114: R39 VALE DO ITAJAI | D114: AV. LUIZ DE CAMÕES, 439 | E114: CORAL | F114: LAGES | G114: SC | H114: 88523-000 | I114: (49) 3222-8832 | J114: 84.683.432/0193-15 | K114: 256151130 | L114: CONVENCIONAL | M114: 2010-08-10
A115: 1283 | B115: 283 SÃO JOSÉ BARREIROS | C115: R36 SC JOINVILLE | D115: R. DEP. LEOBERTO LEAL, N° 9 | E115: BARREIROS | F115: SÃO JOSÉ | G115: SC | H115: 88117-001 | I115: (48) 3240-8012 | J115: 84.683.432/0224-56 | K115: 256442169 | L115: CONVENCIONAL | M115: 2011-07-28
A116: 1285 | B116: 285 MANGUEIRINHA | C116: R38 OESTE PARANAENSE | D116: AV. IGUAÇU, 793, SALA 01 | E116: Centro | F116: MANGUEIRINHA | G116: PR | H116: 85540-000 | I116: (46) 3243-2901 | J116: 84.683.432/0214-84 | K116: 90536781-11 | L116: SALFER MAIS | M116: 2010-12-14
A117: 1286 | B117: 286 XANXERÊ | C117: R39 VALE DO ITAJAI | D117: AV. LA SALLE, 84 | E117: Centro | F117: XANXERÊ | G117: SC | H117: 89820-000 | I117: (49) 3433-9933 | J117: 84.683.432/0223-75 | K117: 256376492 | L117: CONVENCIONAL | M117: 2011-11-10
A118: 1290 | B118: 290 JARAGUA DO SUL BARRA DO RIO CEDRO | C118: R36 SC JOINVILLE | D118: R. ANGELO RUBINI, 1100 | E118: Barra do Rio Cerro | F118: JARAGUÁ DO SUL | G118: SC | H118: 89260-000 | I118: (47) 3370-0832 | J118: 84.683.432/0219-99 | K118: 256321469 | L118: CONVENCIONAL | M118: 2011-02-24
